Workbook

Sheet Исходные данные
A1: Месяц | B1: Продажи, шт.
A2: 1 | B2: 165
A3: 2 | B3: 171
A4: 3 | B4: 147
A5: 4 | B5: 143
A6: 5 | B6: 164
A7: 6 | B7: 160
A8: 7 | B8: 152
A9: 8 | B9: 150
A10: 9 | B10: 159
A11: 10 | B11: 169
A12: 11 | B12: 173
A13: 12 | B13: 203
A14: 13 | B14: 169
A15: 14 | B15: 166
A16: 15 | B16: 162
A17: 16 | B17: 147
A18: 17 | B18: 188
A19: 18 | B19: 161
A20: 19 | B20: 162
A21: 20 | B21: 169
A22: 21 | B22: 185
A23: 22 | B23: 188
A24: 23 | B24: 200
A25: 24 | B25: 229
A26: 25 | B26: 189
A27: 26 | B27: 218
A28: 27 | B28: 185
A29: 28 | B29: 199
A30: 29 | B30: 210
A31: 30 | B31: 193
A32: 31 | B32: 211
A33: 32 | B33: 208
A34: 33 | B34: 216
A35: 34 | B35: 218
A36: 35 | B36: 264
A37: 36 | B37: 304
A39: Наклон | B39: =INDEX(LINEST(B2:B37,A2:A37,TRUE,TRUE),1,1) -> 2.538610039 | C39: =ИНДЕКС(ЛИНЕЙН(B2:B37;A2:A37;ИСТИНА;ИСТИНА);1;1)
A40: Стандартная ошибка наклона | B40: =INDEX(LINEST(B2:B37,A2:A37,TRUE,TRUE),2,1) -> 0.3401817205 | C40: =ИНДЕКС(ЛИНЕЙН(B2:B37;A2:A37;ИСТИНА;ИСТИНА);2;1)
A41: Степеней свободы | B41: =INDEX(LINEST(B2:B37,A2:A37,TRUE,TRUE),4,2) -> 34 | C41: =ИНДЕКС(ЛИНЕЙН(B2:B37;A2:A37;ИСТИНА;ИСТИНА);4;2)
A42: t-тест | B42: =TDIST(ABS(B39/B40),B41,2) -> 1.169415654e-08 | C42: =СТЬЮДРАСП(ABS(B39/B40);B41;2)

Sheet ПЭС
A1: Всего месяцев | C1: Константа сглаживания (альфа) | E1: Сумма квадратов ошибок | F1: Стандартная ошибка | G1: =СУММ(F6:F41)
A2: 36 | C2: 0.7320896354 | E2: =SUM(F6:F41) -> 14555.77106 | F2: =SQRT(E2/(36-1)) -> 20.39311583 | G2: =КОРЕНЬ(E2/(36-1))
C3: =C5+C$2*E6 | D3: =C5 | E3: =B6-D6 | F3: =E6^2
A4: Месяц | B4: Продажи, шт. (спрос) | C4: Уровень | D4: Одношаговый прогноз | E4: Ошибка прогноза | F4: Квадрат ошибки
A5: 0 | C5: =AVERAGE(B6:B17) -> 163
A6: 1 | B6: 165 | C6: =C5+C$2*E6 -> 164.4641793 | D6: =C5 -> 163 | E6: =B6-D6 -> 2 | F6: =E6^2 -> 4
A7: 2 | B7: 171 | C7: =C6+C$2*E7 -> 169.2489859 | D7: =C6 -> 164.4641793 | E7: =B7-D7 -> 6.535820729 | F7: =E7^2 -> 42.7169526
A8: 3 | B8: 147 | C8: 152.9607339 | D8: 169.2489859 | E8: =B8-D8 -> -22.24898589 | F8: 495.0173729
A9: 4 | B9: 143 | C9: 145.6685839 | D9: 152.9607339 | E9: -9.96073392 | F9: 99.21622022
A10: 5 | B10: 164 | C10: 159.0888236 | D10: 145.6685839 | E10: 18.33141614 | F10: 336.0408179
A11: 6 | B11: 160 | C11: 159.7558864 | D11: 159.0888236 | E11: 0.9111763822 | F11: 0.8302423994
A12: 7 | B12: 152 | C12: 154.0778824 | D12: 159.7558864 | E12: -7.755886403 | F12: 60.1537739
A13: 8 | B13: 150 | C13: 151.0925069 | D13: 154.0778824 | E13: -4.077882354 | F13: 16.62912449
A14: 9 | B14: 159 | C14: 156.8815007 | D14: 151.0925069 | E14: 7.907493052 | F14: 62.52844637
A15: 10 | B15: 169 | C15: 165.7533284 | D15: 156.8815007 | E15: 12.11849935 | F15: 146.8580264
A16: 11 | B16: 173 | C16: 171.0585416 | D16: 165.7533284 | E16: 7.246671578 | F16: 52.51424896
A17: 12 | B17: 203 | C17: 194.4425522 | D17: 171.0585416 | E17: 31.94145842 | F17: 1020.256766
A18: 13 | B18: 169 | C18: 175.8163234 | D18: 194.4425522 | E18: -25.44255223 | F18: 647.3234639
A19: 14 | B19: 166 | C19: 168.6298948 | D19: 175.8163234 | E19: -9.816323443 | F19: 96.36020594
A20: 15 | B20: 162 | C20: 163.7762175 | D20: 168.6298948 | E20: -6.629894792 | F20: 43.95550496
A21: 16 | B21: 147 | C21: 151.4945226 | D21: 163.7762175 | E21: -16.77621753 | F21: 281.4414746
A22: 17 | B22: 188 | C22: 178.2198042 | D22: 151.4945226 | E22: 36.50547745 | F22: 1332.649884
A23: 18 | B23: 161 | C23: 165.613364 | D23: 178.2198042 | E23: -17.21980423 | F23: 296.5216577
A24: 19 | B24: 162 | C24: 162.9680577 | D24: 165.613364 | E24: -3.613364029 | F24: 13.0563996
A25: 20 | B25: 169 | C25: 167.3839801 | D25: 162.9680577 | E25: 6.031942326 | F25: 36.38432822
A26: 21 | B26: 185 | C26: 180.2804857 | D26: 167.3839801 | E26: 17.61601987 | F26: 310.324156
A27: 22 | B27: 188 | C27: 185.9318621 | D27: 180.2804857 | E27: 7.719514305 | F27: 59.5909011
A28: 23 | B28: 200 | C28: 196.231 | D28: 185.9318621 | E28: 14.06813789 | F28: 197.9125037
A29: 24 | B29: 229 | C29: 220.2208453 | D29: 196.231 | E29: 32.76899995 | F29: 1073.807358
A30: 25 | B30: 189 | C30: 197.364388 | D30: 220.2208453 | E30: -31.22084528 | F30: 974.7411798
A31: 26 | B31: 218 | C31: 212.4715057 | D31: 197.364388 | E31: 20.63561196 | F31: 425.828481
A32: 27 | B32: 185 | C32: 192.3599011 | D32: 212.4715057 | E32: -27.47150568 | F32: 754.6836242
A33: 28 | B33: 199 | C33: 197.2210487 | D33: 192.3599011 | E33: 6.640098899 | F33: 44.09091339
A34: 29 | B34: 210 | C34: 206.5763865 | D34: 197.2210487 | E34: 12.77895132 | F34: 163.3015968
A35: 30 | B35: 193 | C35: 196.6372547 | D35: 206.5763865 | E35: -13.57638649 | F35: 184.3182702
A36: 31 | B36: 211 | C36: 207.1520717 | D36: 196.6372547 | E36: 14.36274534 | F36: 206.2884538
A37: 32 | B37: 208 | C37: 207.7728312 | D37: 207.1520717 | E37: 0.8479283415 | F37: 0.7189824723
A38: 33 | B38: 216 | C38: 213.7958562 | D38: 207.7728312 | E38: 8.227168791 | F38: 67.68630632
A39: 34 | B39: 218 | C39: 216.8736663 | D39: 213.7958562 | E39: 4.20414379 | F39: 17.67482501
A40: 35 | B40: 264 | C40: 251.3743668 | D40: 216.8736663 | E40: 47.1263337 | F40: 2220.891328
A41: 36 | B41: 304 | C41: 289.9010474 | D41: 251.3743668 | E41: 52.62563324 | F41: 2769.457274
A42: 37 | B42: =C$41 -> 289.9010474
A43: 38 | B43: 289.9010474
A44: 39 | B44: 289.9010474
A45: 40 | B45: 289.9010474
A46: 41 | B46: 289.9010474
A47: 42 | B47: 289.9010474
A48: 43 | B48: 289.9010474
A49: 44 | B49: 289.9010474
A50: 45 | B50: 289.9010474
A51: 46 | B51: 289.9010474
A52: 47 | B52: 289.9010474
A53: 48 | B53: 289.9010474

Sheet Холтовское сглаживание
A1: Всего месяцев | C1: Константа сглаживания (альфа) | D1: Константа сглаживания тренда (гамма) | F1: Сумма квадратов ошибок | G1: Стандартная ошибка | H1: =СУММ(G6:G41)
A2: 36 | C2: 0.6591000466 | D2: 0.05311718046 | F2: =SUM(G6:G41) -> 14097.28083 | G2: =SQRT(F2/(36-2)) -> 20.36236496 | H2: =КОРЕНЬ(F2/(36-2))
C3: =C5+D5+C$2*F6 | D3: =D5+D$2*C$2*F6 | E3: =C5+D5 | F3: =B6-E6 | G3: =F6^2
A4: Месяц | B4: Продажи, шт. (спрос) | C4: Уровень | D4: Тренд | E4: Одношаговый прогноз | F4: Ошибка прогноза | G4: Квадрат ошибки
A5: 0 | C5: 155.88 | D5: 0.8369
A6: 1 | B6: 165 | C6: =C5+D5+C$2*F6 -> 162.1762916 | D6: =D5+D$2*C$2*F6 -> 1.126887489 | E6: =C5+D5 -> 156.7169 | F6: =B6-E6 -> 8.2831 | G6: =F6^2 -> 68.60974561
A7: 2 | B7: 171 | C7: =C6+D6+C$2*F7 -> 168.3761541 | D7: =D6+D$2*C$2*F7 -> 1.396349618 | E7: =C6+D6 -> 163.3031791 | F7: =B7-E7 -> 7.696820916 | G7: =F7^2 -> 59.24105221
A8: 3 | B8: 147 | C8: 154.7631455 | D8: 0.5990948268 | E8: 169.7725037 | F8: -22.77250373 | G8: 518.586926
A9: 4 | B9: 143 | C9: 147.2142871 | D9: 0.166298529 | E9: 155.3622403 | F9: -12.36224029 | G9: 152.8249849
A10: 5 | B10: 164 | C10: 158.3344424 | D10: 0.7481365153 | E10: 147.3805857 | F10: 16.61941433 | G10: 276.2049328
A11: 6 | B11: 160 | C11: 159.6872512 | D11: 0.7802550009 | E11: 159.0825789 | F11: 0.917421057 | G11: 0.8416613958
A12: 7 | B12: 152 | C12: 154.8865725 | D12: 0.4838115366 | E12: 160.4675062 | F12: -8.467506205 | G12: 71.69866134
A13: 8 | B13: 150 | C13: 151.8307637 | D13: 0.2957968837 | E13: 155.370384 | F13: -5.370384008 | G13: 28.84102439
A14: 9 | B14: 159 | C14: 156.6568448 | D14: 0.5364328107 | E14: 152.1265605 | F14: 6.873439458 | G14: 47.24416998
A15: 10 | B15: 169 | C15: 164.9750889 | D15: 0.9497806843 | E15: 157.1932776 | F15: 11.80672238 | G15: 139.3986934
A16: 11 | B16: 173 | C16: 170.5880884 | D16: 1.197477718 | E16: 165.9248696 | F16: 7.075130426 | G16: 50.05747054
A17: 12 | B17: 203 | C17: 192.3590009 | D17: 2.29028057 | E17: 171.7855661 | F17: 31.21443391 | G17: 974.3408846
A18: 13 | B18: 169 | C18: 177.7438389 | D18: 1.392311123 | E18: 194.6492815 | F18: -25.6492815 | G18: 657.8856416
A19: 14 | B19: 166 | C19: 170.4781129 | D19: 0.9324206052 | E19: 179.13615 | F19: -13.13614999 | G19: 172.5584366
A20: 15 | B20: 162 | C20: 165.2080504 | D20: 0.6029621919 | E20: 171.4105335 | F20: -9.410533526 | G20: 88.55814124
A21: 16 | B21: 147 | C21: 153.4126733 | D21: -0.05560263426 | E21: 165.8110126 | F21: -18.81101263 | G21: 353.8541963
A22: 17 | B22: 188 | C22: 176.190227 | D22: 1.15723025 | E22: 153.3570707 | F22: 34.6429293 | G22: 1200.132551
A23: 18 | B23: 161 | C23: 166.5728474 | D23: 0.5849133549 | E23: 177.3474573 | F23: -16.34745726 | G23: 267.239359
A24: 19 | B24: 162 | C24: 163.7582804 | D24: 0.4043425427 | E24: 167.1577608 | F24: -5.157760775 | G24: 26.60249621
A25: 20 | B25: 169 | C25: 167.3509384 | D25: 0.5736968692 | E25: 164.162623 | F25: 4.837377049 | G25: 23.40021672
A26: 21 | B26: 185 | C26: 179.179009 | D26: 1.171497468 | E26: 167.9246353 | F26: 17.07536474 | G26: 291.5680811
A27: 22 | B27: 188 | C27: 185.392288 | D27: 1.43930269 | E27: 180.3505064 | F27: 7.649493578 | G27: 58.51475199
A28: 23 | B28: 200 | C28: 195.5108899 | D28: 1.900322591 | E28: 186.8315907 | F28: 13.16840931 | G28: 173.4070039
A29: 24 | B29: 229 | C29: 218.2313838 | D29: 3.006231389 | E29: 197.4112125 | F29: 31.58878753 | G29: 997.8514977
A30: 25 | B30: 189 | C30: 199.9898015 | D30: 1.877607436 | E30: 221.2376152 | F30: -32.23761519 | G30: 1039.263833
A31: 26 | B31: 218 | C31: 212.5004005 | D31: 2.442401965 | E31: 201.867409 | F31: 16.13259105 | G31: 260.2604939
A32: 27 | B32: 185 | C32: 195.2075 | D32: 1.394118342 | E32: 214.9428024 | F32: -29.94280243 | G32: 896.5714172
A33: 28 | B33: 199 | C33: 198.1823918 | D33: 1.478084572 | E33: 196.6016183 | F33: 2.398381705 | G33: 5.752234803
A34: 29 | B34: 210 | C34: 206.4752569 | D34: 1.840066499 | E34: 199.6604764 | F34: 10.33952364 | G34: 106.9057491
A35: 30 | B35: 193 | C35: 198.220993 | D35: 1.303884132 | E35: 208.3153234 | F35: -15.31532337 | G35: 234.55913
A36: 31 | B36: 211 | C36: 207.0881312 | D36: 1.70562286 | E36: 199.5248772 | F36: 11.47512284 | G36: 131.6784443
A37: 32 | B37: 208 | C37: 208.2705907 | D37: 1.6778339 | E37: 208.793754 | F37: -0.7937540165 | G37: 0.6300454387
A38: 33 | B38: 216 | C38: 213.9370182 | D38: 1.889696747 | E38: 209.9484246 | F38: 6.051575393 | G38: 36.62156474
A39: 34 | B39: 218 | C39: 217.2591272 | D39: 1.965782448 | E39: 215.826715 | F39: 2.173285023 | G39: 4.72316779
A40: 35 | B40: 264 | C40: 248.7361738 | D40: 3.533337589 | E40: 219.2249097 | F40: 44.77509032 | G40: 2004.808713
A41: 36 | B41: 304 | C41: 286.3650788 | D41: 5.344397998 | E41: 252.2695114 | F41: 51.73048861 | G41: 2676.043452
A42: 37 | B42: =C$41+(A42-A$41)*D$41 -> 291.7094768
A43: 38 | B43: =C$41+(A43-A$41)*D$41 -> 297.0538748
A44: 39 | B44: 302.3982728
A45: 40 | B45: 307.7426708
A46: 41 | B46: 313.0870688
A47: 42 | B47: 318.4314668
A48: 43 | B48: 323.7758648
A49: 44 | B49: 329.1202628
A50: 45 | B50: 334.4646608
A51: 46 | B51: 339.8090588
A52: 47 | B52: 345.1534568
A53: 48 | B53: 350.4978548

Sheet Автокорреляция
D1: Сдвиг
A2: Месяц | B2: Ошибка прогноза | C2: Отклонение от среднего | D2: 1 | E2: 2 | F2: 3 | G2: 4 | H2: 5 | I2: 6 | J2: 7 | K2: 8 | L2: 9 | M2: 10 | N2: 11 | O2: 12
A3: 1 | B3: ='Холтовское сглаживание'!F6 -> 8.2831 | C3: =B3-B$39 -> 4.706695065
A4: 2 | B4: ='Холтовское сглаживание'!F7 -> 7.696820916 | C4: =B4-B$39 -> 4.120415981 | D4: =C3 -> 4.706695065
A5: 3 | B5: ='Холтовское сглаживание'!F8 -> -22.77250373 | C5: -26.34890866 | D5: =C4 -> 4.120415981 | E5: =D4 -> 4.706695065
A6: 4 | B6: ='Холтовское сглаживание'!F9 -> -12.36224029 | C6: -15.93864522 | D6: -26.34890866 | E6: 4.120415981 | F6: 4.706695065
A7: 5 | B7: ='Холтовское сглаживание'!F10 -> 16.61941433 | C7: 13.0430094 | D7: -15.93864522 | E7: -26.34890866 | F7: 4.120415981 | G7: 4.706695065
A8: 6 | B8: ='Холтовское сглаживание'!F11 -> 0.917421057 | C8: -2.658983878 | D8: 13.0430094 | E8: -15.93864522 | F8: -26.34890866 | G8: 4.120415981 | H8: 4.706695065
A9: 7 | B9: ='Холтовское сглаживание'!F12 -> -8.467506205 | C9: -12.04391114 | D9: -2.658983878 | E9: 13.0430094 | F9: -15.93864522 | G9: -26.34890866 | H9: 4.120415981 | I9: 4.706695065
A10: 8 | B10: ='Холтовское сглаживание'!F13 -> -5.370384008 | C10: -8.946788943 | D10: -12.04391114 | E10: -2.658983878 | F10: 13.0430094 | G10: -15.93864522 | H10: -26.34890866 | I10: 4.120415981 | J10: 4.706695065
A11: 9 | B11: ='Холтовское сглаживание'!F14 -> 6.873439458 | C11: 3.297034523 | D11: -8.946788943 | E11: -12.04391114 | F11: -2.658983878 | G11: 13.0430094 | H11: -15.93864522 | I11: -26.34890866 | J11: 4.120415981 | K11: 4.706695065
A12: 10 | B12: ='Холтовское сглаживание'!F15 -> 11.80672238 | C12: 8.230317446 | D12: 3.297034523 | E12: -8.946788943 | F12: -12.04391114 | G12: -2.658983878 | H12: 13.0430094 | I12: -15.93864522 | J12: -26.34890866 | K12: 4.120415981 | L12: 4.706695065
A13: 11 | B13: ='Холтовское сглаживание'!F16 -> 7.075130426 | C13: 3.498725491 | D13: 8.230317446 | E13: 3.297034523 | F13: -8.946788943 | G13: -12.04391114 | H13: -2.658983878 | I13: 13.0430094 | J13: -15.93864522 | K13: -26.34890866 | L13: 4.120415981 | M13: 4.706695065
A14: 12 | B14: ='Холтовское сглаживание'!F17 -> 31.21443391 | C14: 27.63802898 | D14: 3.498725491 | E14: 8.230317446 | F14: 3.297034523 | G14: -8.946788943 | H14: -12.04391114 | I14: -2.658983878 | J14: 13.0430094 | K14: -15.93864522 | L14: -26.34890866 | M14: 4.120415981 | N14: 4.706695065
A15: 13 | B15: ='Холтовское сглаживание'!F18 -> -25.6492815 | C15: -29.22568644 | D15: 27.63802898 | E15: 3.498725491 | F15: 8.230317446 | G15: 3.297034523 | H15: -8.946788943 | I15: -12.04391114 | J15: -2.658983878 | K15: 13.0430094 | L15: -15.93864522 | M15: -26.34890866 | N15: 4.120415981 | O15: 4.706695065
A16: 14 | B16: ='Холтовское сглаживание'!F19 -> -13.13614999 | C16: -16.71255493 | D16: -29.22568644 | E16: 27.63802898 | F16: 3.498725491 | G16: 8.230317446 | H16: 3.297034523 | I16: -8.946788943 | J16: -12.04391114 | K16: -2.658983878 | L16: 13.0430094 | M16: -15.93864522 | N16: -26.34890866 | O16: 4.120415981
A17: 15 | B17: ='Холтовское сглаживание'!F20 -> -9.410533526 | C17: -12.98693846 | D17: -16.71255493 | E17: -29.22568644 | F17: 27.63802898 | G17: 3.498725491 | H17: 8.230317446 | I17: 3.297034523 | J17: -8.946788943 | K17: -12.04391114 | L17: -2.658983878 | M17: 13.0430094 | N17: -15.93864522 | O17: -26.34890866
A18: 16 | B18: ='Холтовское сглаживание'!F21 -> -18.81101263 | C18: -22.38741757 | D18: -12.98693846 | E18: -16.71255493 | F18: -29.22568644 | G18: 27.63802898 | H18: 3.498725491 | I18: 8.230317446 | J18: 3.297034523 | K18: -8.946788943 | L18: -12.04391114 | M18: -2.658983878 | N18: 13.0430094 | O18: -15.93864522
A19: 17 | B19: ='Холтовское сглаживание'!F22 -> 34.6429293 | C19: 31.06652437 | D19: -22.38741757 | E19: -12.98693846 | F19: -16.71255493 | G19: -29.22568644 | H19: 27.63802898 | I19: 3.498725491 | J19: 8.230317446 | K19: 3.297034523 | L19: -8.946788943 | M19: -12.04391114 | N19: -2.658983878 | O19: 13.0430094
A20: 18 | B20: ='Холтовское сглаживание'!F23 -> -16.34745726 | C20: -19.9238622 | D20: 31.06652437 | E20: =D19 -> -22.38741757 | F20: -12.98693846 | G20: -16.71255493 | H20: -29.22568644 | I20: 27.63802898 | J20: 3.498725491 | K20: 8.230317446 | L20: 3.297034523 | M20: -8.946788943 | N20: -12.04391114 | O20: -2.658983878
A21: 19 | B21: ='Холтовское сглаживание'!F24 -> -5.157760775 | C21: -8.73416571 | D21: -19.9238622 | E21: 31.06652437 | F21: -22.38741757 | G21: -12.98693846 | H21: -16.71255493 | I21: -29.22568644 | J21: 27.63802898 | K21: 3.498725491 | L21: 8.230317446 | M21: 3.297034523 | N21: -8.946788943 | O21: -12.04391114
A22: 20 | B22: ='Холтовское сглаживание'!F25 -> 4.837377049 | C22: 1.260972114 | D22: -8.73416571 | E22: -19.9238622 | F22: 31.06652437 | G22: -22.38741757 | H22: -12.98693846 | I22: -16.71255493 | J22: -29.22568644 | K22: 27.63802898 | L22: 3.498725491 | M22: 8.230317446 | N22: 3.297034523 | O22: -8.946788943
A23: 21 | B23: ='Холтовское сглаживание'!F26 -> 17.07536474 | C23: 13.49895981 | D23: 1.260972114 | E23: -8.73416571 | F23: -19.9238622 | G23: 31.06652437 | H23: -22.38741757 | I23: -12.98693846 | J23: -16.71255493 | K23: -29.22568644 | L23: 27.63802898 | M23: 3.498725491 | N23: 8.230317446 | O23: 3.297034523
A24: 22 | B24: ='Холтовское сглаживание'!F27 -> 7.649493578 | C24: 4.073088643 | D24: 13.49895981 | E24: 1.260972114 | F24: -8.73416571 | G24: -19.9238622 | H24: 31.06652437 | I24: -22.38741757 | J24: -12.98693846 | K24: -16.71255493 | L24: -29.22568644 | M24: 27.63802898 | N24: 3.498725491 | O24: 8.230317446
A25: 23 | B25: ='Холтовское сглаживание'!F28 -> 13.16840931 | C25: 9.59200438 | D25: 4.073088643 | E25: 13.49895981 | F25: 1.260972114 | G25: -8.73416571 | H25: -19.9238622 | I25: 31.06652437 | J25: -22.38741757 | K25: -12.98693846 | L25: -16.71255493 | M25: -29.22568644 | N25: 27.63802898 | O25: 3.498725491
A26: 24 | B26: ='Холтовское сглаживание'!F29 -> 31.58878753 | C26: 28.0123826 | D26: 9.59200438 | E26: 4.073088643 | F26: 13.49895981 | G26: 1.260972114 | H26: -8.73416571 | I26: -19.9238622 | J26: 31.06652437 | K26: -22.38741757 | L26: -12.98693846 | M26: -16.71255493 | N26: -29.22568644 | O26: 27.63802898
A27: 25 | B27: ='Холтовское сглаживание'!F30 -> -32.23761519 | C27: -35.81402013 | D27: 28.0123826 | E27: 9.59200438 | F27: 4.073088643 | G27: 13.49895981 | H27: 1.260972114 | I27: -8.73416571 | J27: -19.9238622 | K27: 31.06652437 | L27: -22.38741757 | M27: -12.98693846 | N27: -16.71255493 | O27: -29.22568644
A28: 26 | B28: ='Холтовское сглаживание'!F31 -> 16.13259105 | C28: 12.55618611 | D28: -35.81402013 | E28: 28.0123826 | F28: 9.59200438 | G28: 4.073088643 | H28: 13.49895981 | I28: 1.260972114 | J28: -8.73416571 | K28: -19.9238622 | L28: 31.06652437 | M28: -22.38741757 | N28: -12.98693846 | O28: -16.71255493
A29: 27 | B29: ='Холтовское сглаживание'!F32 -> -29.94280243 | C29: -33.51920736 | D29: 12.55618611 | E29: -35.81402013 | F29: 28.0123826 | G29: 9.59200438 | H29: 4.073088643 | I29: 13.49895981 | J29: 1.260972114 | K29: -8.73416571 | L29: -19.9238622 | M29: 31.06652437 | N29: -22.38741757 | O29: -12.98693846
A30: 28 | B30: ='Холтовское сглаживание'!F33 -> 2.398381705 | C30: -1.17802323 | D30: -33.51920736 | E30: 12.55618611 | F30: -35.81402013 | G30: 28.0123826 | H30: 9.59200438 | I30: 4.073088643 | J30: 13.49895981 | K30: 1.260972114 | L30: -8.73416571 | M30: -19.9238622 | N30: 31.06652437 | O30: -22.38741757
A31: 29 | B31: ='Холтовское сглаживание'!F34 -> 10.33952364 | C31: 6.763118704 | D31: -1.17802323 | E31: -33.51920736 | F31: 12.55618611 | G31: -35.81402013 | H31: 28.0123826 | I31: 9.59200438 | J31: 4.073088643 | K31: 13.49895981 | L31: 1.260972114 | M31: -8.73416571 | N31: -19.9238622 | O31: 31.06652437
A32: 30 | B32: ='Холтовское сглаживание'!F35 -> -15.31532337 | C32: -18.89172831 | D32: 6.763118704 | E32: -1.17802323 | F32: -33.51920736 | G32: 12.55618611 | H32: -35.81402013 | I32: 28.0123826 | J32: 9.59200438 | K32: 4.073088643 | L32: 13.49895981 | M32: 1.260972114 | N32: -8.73416571 | O32: -19.9238622
A33: 31 | B33: ='Холтовское сглаживание'!F36 -> 11.47512284 | C33: 7.898717909 | D33: -18.89172831 | E33: 6.763118704 | F33: -1.17802323 | G33: -33.51920736 | H33: 12.55618611 | I33: -35.81402013 | J33: 28.0123826 | K33: 9.59200438 | L33: 4.073088643 | M33: 13.49895981 | N33: 1.260972114 | O33: -8.73416571
A34: 32 | B34: ='Холтовское сглаживание'!F37 -> -0.7937540165 | C34: -4.370158951 | D34: 7.898717909 | E34: -18.89172831 | F34: 6.763118704 | G34: -1.17802323 | H34: -33.51920736 | I34: 12.55618611 | J34: -35.81402013 | K34: 28.0123826 | L34: 9.59200438 | M34: 4.073088643 | N34: 13.49895981 | O34: 1.260972114
A35: 33 | B35: ='Холтовское сглаживание'!F38 -> 6.051575393 | C35: 2.475170458 | D35: -4.370158951 | E35: 7.898717909 | F35: -18.89172831 | G35: 6.763118704 | H35: -1.17802323 | I35: -33.51920736 | J35: 12.55618611 | K35: -35.81402013 | L35: 28.0123826 | M35: 9.59200438 | N35: 4.073088643 | O35: 13.49895981
A36: 34 | B36: ='Холтовское сглаживание'!F39 -> 2.173285023 | C36: -1.403119912 | D36: 2.475170458 | E36: =D35 -> -4.370158951 | F36: 7.898717909 | G36: -18.89172831 | H36: 6.763118704 | I36: -1.17802323 | J36: -33.51920736 | K36: 12.55618611 | L36: -35.81402013 | M36: 28.0123826 | N36: 9.59200438 | O36: 4.073088643
A37: 35 | B37: ='Холтовское сглаживание'!F40 -> 44.77509032 | C37: 41.19868538 | D37: -1.403119912 | E37: 2.475170458 | F37: -4.370158951 | G37: 7.898717909 | H37: -18.89172831 | I37: 6.763118704 | J37: -1.17802323 | K37: -33.51920736 | L37: 12.55618611 | M37: -35.81402013 | N37: 28.0123826 | O37: 9.59200438
A38: 36 | B38: ='Холтовское сглаживание'!F41 -> 51.73048861 | C38: 48.15408368 | D38: 41.19868538 | E38: -1.403119912 | F38: 2.475170458 | G38: -4.370158951 | H38: 7.898717909 | I38: -18.89172831 | J38: 6.763118704 | K38: -1.17802323 | L38: -33.51920736 | M38: 12.55618611 | N38: -35.81402013 | O38: 28.0123826
B39: =AVERAGE(B3:B38) -> 3.576404935 | C39: =SUMPRODUCT($C3:$C38,C3:C38) -> 13636.81662 | D39: =SUMPRODUCT($C3:$C38,D3:D38) -> -474.0701591 | E39: =SUMPRODUCT($C3:$C38,E3:E38) -> 753.3627026 | F39: -229.3066033 | G39: -2223.641786 | H39: 1544.283906 | I39: -2442.531515 | J39: 1790.52546 | K39: -4382.609243 | L39: -167.6997026 | M39: -1460.419668 | N39: 733.0617937 | O39: 5512.80129
B41: Автокорреляция | D41: =D39/$C39 -> -0.03476399017 | E41: =E39/$C39 -> 0.05524476301 | F41: =F39/$C39 -> -0.01681525899 | G41: -0.1630616475 | H41: 0.1132437246 | I41: -0.1791130278 | J41: 0.1313008387 | K41: -0.3213806685 | L41: -0.01229756968 | M41: -0.1070938847 | N41: 0.05375607914 | O41: 0.4042586655
B42: Верхняя граница | D42: =2/SQRT(36) -> 0.3333333333 | E42: =2/SQRT(36) -> 0.3333333333 | F42: 0.3333333333 | G42: 0.3333333333 | H42: 0.3333333333 | I42: 0.3333333333 | J42: 0.3333333333 | K42: 0.3333333333 | L42: 0.3333333333 | M42: 0.3333333333 | N42: 0.3333333333 | O42: 0.3333333333
B43: Нижняя граница | D43: =-2/SQRT(36) -> -0.3333333333 | E43: =-2/SQRT(36) -> -0.3333333333 | F43: -0.3333333333 | G43: -0.3333333333 | H43: -0.3333333333 | I43: -0.3333333333 | J43: -0.3333333333 | K43: -0.3333333333 | L43: -0.3333333333 | M43: -0.3333333333 | N43: -0.3333333333 | O43: =-2/SQRT(36) -> -0.3333333333

Sheet Холт-Винтерс_1
A1: Месяц | B1: Продажи, шт. (спрос) | C1: Сглаженные данные | D1: Сезонная поправка | E1: Усредненная сезонная поправка | F1: Отклонение, % | G1: Данные, очищенные от сезонного фактора | J1: Результат сглаживания 2х12
A2: 1 | B2: 165 | E2: =AVERAGE(D14,D26) -> 0.9882333992 | F2: =E2-1 -> -0.01176660076 | G2: =B2/E2 -> 166.9646059
A3: 2 | B3: 171 | E3: =AVERAGE(D15,D27) -> 1.039459514 | F3: =E3-1 -> 0.03945951421 | G3: =B3/E3 -> 164.5085717
A4: 3 | B4: 147 | E4: 0.9329332917 | F4: -0.06706670829 | G4: 157.567536
A5: 4 | B5: 143 | E5: 0.9125977559 | F5: -0.08740224409 | G5: 156.695542
A6: 5 | B6: 164 | E6: 1.043010605 | F6: 0.04301060474 | G6: 157.2371357
A7: 6 | B7: 160 | E7: 0.9064424515 | F7: -0.09355754846 | G7: 176.5142395
A8: 7 | B8: 152 | C8: =(AVERAGE(B3:B14)+AVERAGE(B2:B13))/2 -> 163.1666667 | D8: =B8/C8 -> 0.9315628192 | E8: =AVERAGE(D8,D20) -> 0.9208375894 | F8: -0.07916241062 | G8: 165.0671104
A9: 8 | B9: 150 | C9: =(AVERAGE(B4:B15)+AVERAGE(B3:B14))/2 -> 163.125 | D9: =B9/C9 -> 0.9195402299 | E9: =AVERAGE(D9,D21) -> 0.9266209437 | F9: -0.07337905633 | G9: 161.8784909
A10: 9 | B10: 159 | C10: 163.5416667 | D10: 0.9722292994 | E10: 0.9884907529 | F10: -0.01150924713 | G10: 160.8512771
A11: 10 | B11: 169 | C11: 164.3333333 | D11: 1.028397566 | E11: 1.016201453 | F11: 0.01620145319 | G11: 166.3056075
A12: 11 | B12: 173 | C12: 165.5 | D12: 1.045317221 | E12: 1.048052656 | F12: 0.04805265581 | G12: 165.0680422
A13: 12 | B13: 203 | C13: 166.5416667 | D13: 1.218914186 | E13: 1.204004908 | F13: 0.2040049076 | G13: 168.6039639
A14: 13 | B14: 169 | C14: 167 | D14: 1.011976048 | E14: =E2 -> 0.9882333992 | G14: 171.0122327
A15: 14 | B15: 166 | C15: 168.2083333 | D15: 0.9868714392 | E15: =E3 -> 1.039459514 | G15: 159.6983795
A16: 15 | B16: 162 | C16: 170.0833333 | D16: 0.9524742773 | E16: 0.9329332917 | G16: 173.645856
A17: 16 | B17: 147 | C17: 171.9583333 | D17: 0.8548582505 | E17: 0.9125977559 | G17: 161.0786341
A18: 17 | B18: 188 | C18: 173.875 | D18: 1.08123652 | E18: 1.043010605 | G18: 180.2474482
A19: 18 | B19: 161 | C19: 176.0833333 | D19: 0.9143398012 | E19: 0.9064424515 | G19: 177.6174535
A20: 19 | B20: 162 | C20: =(AVERAGE(B15:B26)+AVERAGE(B14:B25))/2 -> 178 | D20: 0.9101123596 | E20: 0.9208375894 | G20: 175.9267887
A21: 20 | B21: 169 | C21: 181 | D21: 0.9337016575 | E21: 0.9266209437 | G21: 182.3830997
A22: 21 | B22: 185 | C22: 184.125 | D22: 1.004752206 | E22: 0.9884907529 | G22: 187.1540017
A23: 22 | B23: 188 | C23: 187.25 | D23: 1.00400534 | E23: 1.016201453 | G23: 185.0026876
A24: 23 | B24: 200 | C24: 190.3333333 | D24: 1.050788091 | E24: 1.048052656 | G24: 190.8301066
A25: 24 | B25: 229 | C25: 192.5833333 | D25: 1.18909563 | E25: 1.204004908 | G25: 190.1985603
A26: 25 | B26: 189 | C26: 195.9583333 | D26: 0.9644907506 | E26: 0.9882333992 | G26: 191.2503667
A27: 26 | B27: 218 | C27: 199.625 | D27: 1.092047589 | E27: 1.039459514 | G27: 209.7243779
A28: 27 | B28: 185 | C28: 202.5416667 | D28: 0.9133923061 | E28: 0.9329332917 | G28: 198.29928
A29: 28 | B29: 199 | C29: 205.0833333 | D29: 0.9703372613 | E29: 0.9125977559 | G29: 218.0588312
A30: 29 | B30: 210 | C30: 209 | D30: 1.004784689 | E30: 1.043010605 | G30: 201.3402347
A31: 30 | B31: 193 | C31: 214.7916667 | D31: 0.8985451018 | E31: 0.9064424515 | G31: 212.9203014
A32: 31 | B32: 211 | E32: 0.9208375894 | G32: 229.1392124
A33: 32 | B33: 208 | E33: 0.9266209437 | G33: 224.4715074
A34: 33 | B34: 216 | E34: 0.9884907529 | G34: 218.5149425
A35: 34 | B35: 218 | E35: 1.016201453 | G35: 214.5243931
A36: 35 | B36: 264 | E36: 1.048052656 | G36: 251.8957407
A37: 36 | B37: 304 | E37: 1.204004908 | G37: 252.4906652

Sheet Холт-Винтерс_2
A1: Всего месяцев | C1: Константа сглаживания (альфа) | D1: Константа сглаживания тренда (гамма) | E1: Константа сглаживания сезонности (дельта) | G1: Сумма квадратов ошибок | H1: Стандартная ошибка
A2: 36 | C2: 0.5 | D2: 0.5 | E2: 0.5 | G2: =SUM(H17:H55) -> 5212.597775 | H2: =SQRT(G2/(36-3)) -> 12.56811475
F3: =СУММ(H17:H56) | H3: =КОРЕНЬ(G2/(36-3))
A4: Месяц | B4: Продажи, шт. (спрос) | C4: Уровень | D4: Тренд | E4: Сезонный коэффициент | F4: Одношаговый прогноз | G4: Ошибка прогноза | H4: Квадрат ошибки
A5: -11 | E5: ='Холт-Винтерс_1'!E2 -> 0.9882333992
A6: -10 | E6: ='Холт-Винтерс_1'!E3 -> 1.039459514
A7: -9 | E7: ='Холт-Винтерс_1'!E4 -> 0.9329332917
A8: -8 | E8: ='Холт-Винтерс_1'!E5 -> 0.9125977559
A9: -7 | E9: ='Холт-Винтерс_1'!E6 -> 1.043010605
A10: -6 | E10: ='Холт-Винтерс_1'!E7 -> 0.9064424515
A11: -5 | E11: ='Холт-Винтерс_1'!E8 -> 0.9208375894
A12: -4 | E12: ='Холт-Винтерс_1'!E9 -> 0.9266209437
A13: -3 | E13: ='Холт-Винтерс_1'!E10 -> 0.9884907529
A14: -2 | E14: ='Холт-Винтерс_1'!E11 -> 1.016201453
A15: -1 | E15: ='Холт-Винтерс_1'!E12 -> 1.048052656
A16: 0 | C16: 144.42 | D16: 2.2095 | E16: ='Холт-Винтерс_1'!E13 -> 1.204004908
A17: 1 | B17: ='Холт-Винтерс_1'!B2 -> 165 | C17: =C16+D16+C$2*G17/E5 -> 156.7970529 | D17: =D16+D$2*C$2*G17/E5 -> 7.293276464 | E17: =E5+E$2*(1-C$2)*G17/(C16+D16) -> 1.022496339 | F17: =(C16+D16)*E5 -> 144.9041692 | G17: =B17-F17 -> 20.09583079 | H17: =G17^2 -> 403.842415
C19: =C16+D16+C$2*G17/E5 | E19: =E5+E$2*(1-C$2)*G17/(C16+D16) | G19: =B17-F17 | H19: =G17^2
D20: =D16+D$2*C$2*G17/E5 | F20: =(C16+D16)*E5
A21: 2 | B21: ='Холт-Винтерс_1'!B3 -> 171 | C21: =C17+D17+C$2*G21/E6 -> 164.2994505 | D21: =D17+D$2*C$2*G21/E6 -> 7.397837036 | E21: =E6+E$2*(1-C$2)*G21/(C17+D17) -> 1.040121872 | F21: =(C17+D17)*E6 -> 170.5652541 | G21: =B21-F21 -> 0.4347459227 | H21: =G21^2 -> 0.1890040173
A22: 3 | B22: ='Холт-Винтерс_1'!B4 -> 147 | C22: =C21+D21+C$2*G22/E7 -> 164.6324118 | D22: =D21+D$2*C$2*G22/E7 -> 3.865399135 | E22: =E7+E$2*(1-C$2)*G22/(C21+D21) -> 0.9137394596 | F22: =(C21+D21)*E7 -> 160.1821157 | G22: -13.18211567 | H22: 173.7681736
A23: 4 | B23: ='Холт-Винтерс_1'!B5 -> 143 | C23: =C22+D22+C$2*G23/E8 -> 162.5966765 | D23: =D22+D$2*C$2*G23/E8 -> 0.9148319115 | E23: =E8+E$2*(1-C$2)*G23/(C22+D22) -> 0.8966172455 | F23: =(C22+D22)*E8 -> 153.7707241 | G23: -10.77072411 | H23: 116.0084978
A24: 5 | B24: ='Холт-Винтерс_1'!B6 -> 164 | C24: =C23+D23+C$2*G24/E9 -> 160.374322 | D24: =D23+D$2*C$2*G24/E9 -> -0.6537612547 | E24: =E9+E$2*(1-C$2)*G24/(C23+D23) -> 1.03300483 | F24: =(C23+D23)*E9 -> 170.5442372 | G24: -6.544237227 | H24: 42.82704089
A25: 6 | B25: ='Холт-Винтерс_1'!B7 -> 160 | C25: =C24+D24+C$2*G25/E10 -> 168.1174002 | D25: =D24+D$2*C$2*G25/E10 -> 3.544658429 | E25: =E10+E$2*(1-C$2)*G25/(C24+D24) -> 0.9302692263 | F25: =(C24+D24)*E10 -> 144.7774967 | G25: 15.22250332 | H25: 231.7246074
A26: 7 | B26: ='Холт-Винтерс_1'!B8 -> 152 | C26: =C25+D25+C$2*G26/E11 -> 168.3645845 | D26: =D25+D$2*C$2*G26/E11 -> 1.895921377 | E26: =E11+E$2*(1-C$2)*G26/(C25+D25) -> 0.9119933575 | F26: =(C25+D25)*E11 -> 158.0728762 | G26: -6.07287621 | H26: 36.87982546
A27: 8 | B27: ='Холт-Винтерс_1'!B9 -> 150 | C27: =C26+D26+C$2*G27/E12 -> 166.0694984 | D27: =D26+D$2*C$2*G27/E12 -> -0.1995823605 | E27: =E12+E$2*(1-C$2)*G27/(C26+D26) -> 0.9152164336 | F27: =(C26+D26)*E12 -> 157.7669506 | G27: -7.766950603 | H27: 60.32552167
A28: 9 | B28: ='Холт-Винтерс_1'!B10 -> 159 | C28: =C27+D27+C$2*G28/E13 -> 163.3605966 | D28: =D27+D$2*C$2*G28/E13 -> -1.45424209 | E28: =E13+E$2*(1-C$2)*G28/(C27+D27) -> 0.9810136915 | F28: =(C27+D27)*E13 -> 163.9608782 | G28: -4.960878162 | H28: 24.61031214
A29: 10 | B29: ='Холт-Винтерс_1'!B11 -> 169 | C29: =C28+D28+C$2*G29/E14 -> 164.105981 | D29: =D28+D$2*C$2*G29/E14 -> -0.3544288357 | E29: =E14+E$2*(1-C$2)*G29/(C28+D28) -> 1.023104405 | F29: =(C28+D28)*E14 -> 164.5294727 | G29: 4.470527309 | H29: 19.98561442
A30: 11 | B30: ='Холт-Винтерс_1'!B12 -> 173 | C30: =C29+D29+C$2*G30/E15 -> 164.4097972 | D30: =D29+D$2*C$2*G30/E15 -> -0.02530632484 | E30: =E15+E$2*(1-C$2)*G30/(C29+D29) -> 1.050159126 | F30: =(C29+D29)*E15 -> 171.6202491 | G30: 1.379750886 | H30: 1.903712508
A31: 12 | B31: ='Холт-Винтерс_1'!B13 -> 203 | C31: =C30+D30+C$2*G31/E16 -> 166.4942274 | D31: =D30+D$2*C$2*G31/E16 -> 1.029561945 | E31: =E16+E$2*(1-C$2)*G31/(C30+D30) -> 1.211731102 | F31: =(C30+D30)*E16 -> 197.9197337 | G31: 5.080266295 | H31: 25.80910563
A32: 13 | B32: ='Холт-Винтерс_1'!B14 -> 169 | C32: =C31+D31+C$2*G32/E17 -> 166.4027774 | D32: =D31+D$2*C$2*G32/E17 -> 0.4690559661 | E32: =E17+E$2*(1-C$2)*G32/(C31+D31) -> 1.019075241 | F32: =(C31+D31)*E17 -> 171.2924612 | G32: -2.292461245 | H32: 5.25537856
A33: 14 | B33: ='Холт-Винтерс_1'!B15 -> 166 | C33: =C32+D32+C$2*G33/E21 -> 163.2342578 | D33: =D32+D$2*C$2*G33/E21 -> -1.349731775 | E33: =E21+E$2*(1-C$2)*G33/(C32+D32) -> 1.028785262 | F33: =(C32+D32)*E21 -> 173.5670436 | G33: -7.56704364 | H33: 57.26014945
A34: 15 | B34: ='Холт-Винтерс_1'!B16 -> 162 | C34: 169.5889764 | D34: 2.50249341 | E34: 0.9354829223 | F34: 147.9202794 | G34: 14.07972063 | H34: 198.2385331
A35: 16 | B35: ='Холт-Винтерс_1'!B17 -> 147 | C35: 168.0205133 | D35: 0.4670151429 | E35: 0.886012159 | F35: 154.3001797 | G35: -7.300179667 | H35: 53.29262317
A36: 17 | B36: ='Холт-Винтерс_1'!B18 -> 188 | C36: 175.2404346 | D36: 3.843468206 | E36: 1.05370602 | F36: 174.0484307 | G36: 13.95156929 | H36: 194.6462857
A37: 18 | B37: ='Холт-Винтерс_1'!B19 -> 161 | C37: 176.0760404 | D37: 2.339536994 | E37: 0.9224569054 | F37: 166.5962437 | G37: -5.596243699 | H37: 31.31794354
A38: 19 | B38: ='Холт-Винтерс_1'!B20 -> 162 | C38: 178.024225 | D38: 2.143860835 | E38: 0.9109931345 | F38: 162.7138214 | G38: -0.7138214287 | H38: 0.5095410321
A39: 20 | B39: ='Холт-Винтерс_1'!B21 -> 169 | C39: 182.4119305 | D39: 3.265783158 | E39: 0.9209155659 | F39: 164.892793 | G39: 4.107206988 | H39: 16.86914924
A40: 21 | B40: ='Холт-Винтерс_1'!B22 -> 185 | C40: 187.1290801 | D40: 3.99146637 | E40: 0.9848477821 | F40: 182.1523793 | G40: 2.847620667 | H40: 8.108943465
A41: 22 | B41: ='Холт-Винтерс_1'!B23 -> 188 | C41: 187.4375044 | D41: 2.149945352 | E41: 1.013246395 | F41: 195.5362731 | G41: -7.536273065 | H41: 56.79541171
A42: 23 | B42: ='Холт-Винтерс_1'!B24 -> 200 | C42: 190.0173891 | D42: 2.364915029 | E42: 1.051349882 | F42: 199.0969905 | G42: 0.9030094716 | H42: 0.8154261058
A43: 24 | B43: ='Холт-Винтерс_1'!B25 -> 229 | C43: 190.6840637 | D43: 1.515794813 | E43: 1.206382869 | F43: 233.1156215 | G43: -4.115621498 | H43: 16.93834032
A44: 25 | B44: ='Холт-Винтерс_1'!B26 -> 189 | C44: 188.8310606 | D44: -0.168604154 | E44: 1.010144281 | F44: 195.8661171 | G44: -6.866117133 | H44: 47.14356448
A45: 26 | B45: ='Холт-Винтерс_1'!B27 -> 218 | C45: 200.2814241 | D45: 5.640879668 | E45: 1.060464651 | F45: 194.0931547 | G45: 23.90684534 | H45: 571.537254
A46: 27 | B46: ='Холт-Винтерс_1'!B28 -> 185 | C46: 201.8405625 | D46: 3.600009032 | E46: 0.9262114661 | F46: 192.6367985 | G46: -7.636798509 | H46: 58.32069147
A47: 28 | B47: ='Холт-Винтерс_1'!B29 -> 199 | C47: 215.0212277 | D47: 8.390337101 | E47: 0.9066716075 | F47: 182.0228443 | G47: 16.97715566 | H47: 288.2238143
A48: 29 | B48: ='Холт-Винтерс_1'!B30 -> 210 | C48: 211.3540695 | D48: 2.361589456 | E48: 1.025271826 | F48: 235.4101107 | G48: -25.41011075 | H48: 645.6737281
A49: 30 | B49: ='Холт-Винтерс_1'!B31 -> 193 | C49: 211.4697625 | D49: 1.238641229 | E49: 0.9176099449 | F49: 197.1434854 | G49: -4.143485385 | H49: 17.16847114
A50: 31 | B50: ='Холт-Винтерс_1'!B32 -> 211 | C50: 222.1618803 | D50: 5.965379527 | E50: 0.9312369334 | F50: 193.7758954 | G50: 17.22410455 | H50: 296.6697776
A51: 32 | B51: ='Холт-Винтерс_1'!B33 -> 208 | C51: 226.9947214 | D51: 5.399110298 | E51: 0.9186296218 | F51: 210.0859446 | G51: -2.085944589 | H51: 4.351164828
A52: 33 | B52: ='Холт-Винтерс_1'!B34 -> 216 | C52: 225.8585326 | D52: 2.131460735 | E52: 0.9710000073 | F52: 228.8725497 | G52: -12.8725497 | H52: 165.7025358
A53: 34 | B53: ='Холт-Винтерс_1'!B35 -> 218 | C53: 221.5700154 | D53: -1.078528204 | E53: 0.9989803757 | F53: 231.0100389 | G53: -13.01003888 | H53: 169.2611117
A54: 35 | B54: ='Холт-Винтерс_1'!B36 -> 264 | C54: 235.7986184 | D54: 6.575037366 | E54: 1.087843695 | F54: 231.813699 | G54: 32.18630102 | H54: 1035.957973
A55: 36 | B55: ='Холт-Винтерс_1'!B37 -> 304 | C55: 247.1833119 | D55: 8.97986548 | E55: =E43+E$2*(1-C$2)*G55/(C54+D54) -> 1.218352584 | F55: 292.3954262 | G55: 11.60457376 | H55: 134.6661322
A56: 37 | B56: =(C$55+(A56-A$55)*D$55)*E44 -> 258.7617686
A57: 38 | B57: =(C$55+(A57-A$55)*D$55)*E45 -> 281.1748244
A58: 39 | B58: 253.8957809
A59: 40 | B59: 256.6812471
A60: 41 | B60: 299.4641011
A61: 42 | B61: 276.2579485
A62: 43 | B62: 288.7229061
A63: 44 | B63: 293.0632758
A64: 45 | B64: 318.4900427
A65: 46 | B65: 336.6383718
A66: 47 | B66: 376.352398
A67: 48 | B67: 432.4441345

Sheet Холт-Винтерс_3
A1: Всего месяцев | C1: Константа сглаживания (альфа) | D1: Константа сглаживания тренда (гамма) | E1: Константа сглаживания сезонности (дельта) | G1: Сумма квадратов ошибок | H1: Стандартная ошибка | J1: Прогноз Холта-Винтерса
A2: 36 | C2: 0.3070034712 | D2: 0.2289145317 | E2: 0 | G2: =SUM(H17:H52) -> 3550.664504 | H2: =SQRT(G2/(36-3)) -> 10.37284407
A4: Месяц | B4: Продажи, шт. (спрос) | C4: Уровень | D4: Тренд | E4: Сезонный коэффициент | F4: Одношаговый прогноз | G4: Ошибка прогноза | H4: Квадрат ошибки
A5: -11 | E5: ='Холт-Винтерс_1'!E2 -> 0.9882333992
A6: -10 | E6: ='Холт-Винтерс_1'!E3 -> 1.039459514
A7: -9 | E7: ='Холт-Винтерс_1'!E4 -> 0.9329332917
A8: -8 | E8: ='Холт-Винтерс_1'!E5 -> 0.9125977559
A9: -7 | E9: ='Холт-Винтерс_1'!E6 -> 1.043010605
A10: -6 | E10: ='Холт-Винтерс_1'!E7 -> 0.9064424515
A11: -5 | E11: ='Холт-Винтерс_1'!E8 -> 0.9208375894
A12: -4 | E12: ='Холт-Винтерс_1'!E9 -> 0.9266209437
A13: -3 | E13: ='Холт-Винтерс_1'!E10 -> 0.9884907529
A14: -2 | E14: ='Холт-Винтерс_1'!E11 -> 1.016201453
A15: -1 | E15: ='Холт-Винтерс_1'!E12 -> 1.048052656
A16: 0 | C16: 144.42 | D16: 2.2095 | E16: ='Холт-Винтерс_1'!E13 -> 1.204004908
A17: 1 | B17: ='Холт-Винтерс_1'!B2 -> 165 | C17: =C16+D16+C$2*G17/E5 -> 152.8724481 | D17: =D16+D$2*C$2*G17/E5 -> 3.638601538 | E17: =E5+E$2*(1-C$2)*G17/(C16+D16) -> 0.9882333992 | F17: =(C16+D16)*E5 -> 144.9041692 | G17: =B17-F17 -> 20.09583079 | H17: =G17^2 -> 403.842415
A18: 2 | B18: ='Холт-Винтерс_1'!B3 -> 171 | C18: =C17+D17+C$2*G18/E6 -> 158.9663167 | D18: =D17+D$2*C$2*G18/E6 -> 4.200647841 | E18: =E6+E$2*(1-C$2)*G18/(C17+D17) -> 1.039459514 | F18: =(C17+D17)*E6 -> 162.6868996 | G18: =B18-F18 -> 8.31310039 | H18: =G18^2 -> 69.1076381
A19: 3 | B19: ='Холт-Винтерс_1'!B4 -> 147 | C19: =C18+D18+C$2*G19/E7 -> 161.4479205 | D19: =D18+D$2*C$2*G19/E7 -> 3.80713369 | E19: =E7+E$2*(1-C$2)*G19/(C18+D18) -> 0.9329332917 | F19: =(C18+D18)*E7 -> 152.2238933 | G19: -5.223893286 | H19: 27.28906106
A20: 4 | B20: ='Холт-Винтерс_1'!B5 -> 143 | C20: =C19+D19+C$2*G20/E8 -> 162.6272542 | D20: =D19+D$2*C$2*G20/E8 -> 3.205592094 | E20: =E8+E$2*(1-C$2)*G20/(C19+D19) -> 0.9125977559 | F20: =(C19+D19)*E8 -> 150.8113916 | G20: -7.811391608 | H20: 61.01783885
A21: 5 | B21: ='Холт-Винтерс_1'!B6 -> 164 | C21: =C20+D20+C$2*G21/E9 -> 163.1939333 | D21: =D20+D$2*C$2*G21/E9 -> 2.60150656 | E21: =E9+E$2*(1-C$2)*G21/(C20+D20) -> 1.043010605 | F21: =(C20+D20)*E9 -> 172.9654173 | G21: -8.965417341 | H21: 80.3787081
A22: 6 | B22: ='Холт-Винтерс_1'!B7 -> 160 | C22: =C21+D21+C$2*G22/E10 -> 169.0861486 | D22: =D21+D$2*C$2*G22/E10 -> 3.3547976 | E22: =E10+E$2*(1-C$2)*G22/(C21+D21) -> 0.9064424515 | F22: =(C21+D21)*E10 -> 150.284025 | G22: 9.715975009 | H22: 94.40017037
A23: 7 | B23: ='Холт-Винтерс_1'!B8 -> 152 | C23: =C22+D22+C$2*G23/E11 -> 170.177153 | D23: =D22+D$2*C$2*G23/E11 -> 2.836582441 | E23: =E11+E$2*(1-C$2)*G23/(C22+D22) -> 0.9208375894 | F23: =(C22+D22)*E11 -> 158.7901052 | G23: -6.790105195 | H23: 46.10552857
A24: 8 | B24: ='Холт-Винтерс_1'!B9 -> 150 | C24: =C23+D23+C$2*G24/E12 -> 169.5951767 | D24: =D23+D$2*C$2*G24/E12 -> 2.054024672 | E24: =E12+E$2*(1-C$2)*G24/(C23+D23) -> 0.9266209437 | F24: =(C23+D23)*E12 -> 160.3181508 | G24: -10.3181508 | H24: 106.4642359
A25: 9 | B25: ='Холт-Винтерс_1'!B10 -> 159 | C25: =C24+D24+C$2*G25/E13 -> 168.3342011 | D25: =D24+D$2*C$2*G25/E13 -> 1.295172945 | E25: =E13+E$2*(1-C$2)*G25/(C24+D24) -> 0.9884907529 | F25: =(C24+D24)*E13 -> 169.6736483 | G25: -10.67364831 | H25: 113.9267681
A26: 10 | B26: ='Холт-Винтерс_1'!B11 -> 169 | C26: =C25+D25+C$2*G26/E14 -> 168.6089662 | D26: =D25+D$2*C$2*G26/E14 -> 1.061586752 | E26: =E14+E$2*(1-C$2)*G26/(C25+D25) -> 1.016201453 | F26: =(C25+D25)*E14 -> 172.3776165 | G26: -3.377616455 | H26: 11.40829291
A27: 11 | B27: ='Холт-Винтерс_1'!B12 -> 173 | C27: =C26+D26+C$2*G27/E15 -> 168.2575662 | D27: =D26+D$2*C$2*G27/E15 -> 0.7381335436 | E27: =E15+E$2*(1-C$2)*G27/(C26+D26) -> 1.048052656 | F27: =(C26+D26)*E15 -> 177.8236736 | G27: -4.823673639 | H27: 23.26782737
A28: 12 | B28: ='Холт-Винтерс_1'!B13 -> 203 | C28: =C27+D27+C$2*G28/E16 -> 168.8754355 | D28: =D27+D$2*C$2*G28/E16 -> 0.7106033091 | E28: =E16+E$2*(1-C$2)*G28/(C27+D27) -> 1.204004908 | F28: =(C27+D27)*E16 -> 203.4716518 | G28: -0.4716518258 | H28: 0.2224554448
A29: 13 | B29: ='Холт-Винтерс_1'!B14 -> 169 | C29: =C28+D28+C$2*G29/E17 -> 170.0238853 | D29: =D28+D$2*C$2*G29/E17 -> 0.8108327299 | E29: =E17+E$2*(1-C$2)*G29/(C28+D28) -> 0.9882333992 | F29: =(C28+D28)*E17 -> 167.5905876 | G29: 1.409412436 | H29: 1.986443415
A30: 14 | B30: ='Холт-Винтерс_1'!B15 -> 166 | C30: =C29+D29+C$2*G30/E18 -> 167.4158234 | D30: =D29+D$2*C$2*G30/E18 -> 0.02819808198 | E30: =E18+E$2*(1-C$2)*G30/(C29+D29) -> 1.039459514 | F30: =(C29+D29)*E18 -> 177.575773 | G30: -11.57577296 | H30: 133.9985197
A31: 15 | B31: ='Холт-Винтерс_1'!B16 -> 162 | C31: 169.3480062 | D31: 0.4640478502 | E31: 0.9329332917 | F31: 156.2141022 | G31: 5.785897845 | H31: 33.47661387
A32: 16 | B32: ='Холт-Винтерс_1'!B17 -> 147 | C32: 167.1308638 | D32: -0.1497155592 | E32: 0.9125977559 | F32: 154.9700995 | G32: -7.970099461 | H32: 63.52248542
A33: 17 | B33: ='Холт-Винтерс_1'!B18 -> 188 | C33: 171.0539484 | D33: 0.7826075795 | E33: 1.043010605 | F33: 174.1631084 | G33: 13.83689158 | H33: 191.4595685
A34: 18 | B34: ='Холт-Винтерс_1'!B19 -> 161 | C34: 173.6113116 | D34: 1.188874929 | E34: 0.9064424515 | F34: 155.7599491 | G34: 5.240050931 | H34: 27.45813376
A35: 19 | B35: ='Холт-Винтерс_1'!B20 -> 162 | C35: 175.1460573 | D35: 1.268049775 | E35: 0.9208375894 | F35: 160.9625824 | G35: 1.037417622 | H35: 1.076235322
A36: 20 | B36: ='Холт-Винтерс_1'!B21 -> 169 | C36: 178.2466085 | D36: 1.687535992 | E36: 0.9266209437 | F36: 163.4690064 | G36: 5.530993629 | H36: 30.59189052
A37: 21 | B37: ='Холт-Винтерс_1'!B22 -> 185 | C37: 182.1506657 | D37: 2.194929904 | E37: 0.9884907529 | F37: 177.863238 | G37: 7.136762001 | H37: 50.93337186
A38: 22 | B38: ='Холт-Винтерс_1'!B23 -> 188 | C38: 184.5473252 | D38: 2.241108722 | E38: 1.016201453 | F38: 187.3322622 | G38: 0.6677378254 | H38: 0.4458738035
A39: 23 | B39: ='Холт-Винтерс_1'!B24 -> 200 | C39: 188.0292414 | D39: 2.525147601 | E39: 1.048052656 | F39: 195.7641142 | G39: 4.235885801 | H39: 17.94272852
A40: 24 | B40: ='Холт-Винтерс_1'!B25 -> 229 | C40: 190.4451484 | D40: 2.500140826 | E40: 1.204004908 | F40: 229.4284196 | G40: -0.4284195538 | H40: 0.183543314
A41: 25 | B41: ='Холт-Винтерс_1'!B26 -> 189 | C41: 192.4249421 | D41: 2.381025817 | E41: 0.9882333992 | F41: 190.674979 | G41: -1.674979006 | H41: 2.805554669
A42: 26 | B42: ='Холт-Винтерс_1'!B27 -> 218 | C42: 199.3859716 | D42: 3.429455209 | E42: 1.039459514 | F42: 202.4929168 | G42: 15.50708322 | H42: 240.4696299
A43: 27 | B43: ='Холт-Винтерс_1'!B28 -> 185 | C43: 201.428954 | D43: 3.112071448 | E43: 0.9329332917 | F43: 189.2132637 | G43: -4.213263724 | H43: 17.75159121
A44: 28 | B44: ='Холт-Винтерс_1'!B29 -> 199 | C44: 208.6910388 | D44: 4.062069794 | E44: 0.9125977559 | F44: 186.6636808 | G44: 12.33631915 | H44: 152.1847702
A45: 29 | B45: ='Холт-Винтерс_1'!B30 -> 210 | C45: 209.2493167 | D45: 3.260000917 | E45: 1.043010605 | F45: 221.9037484 | G45: -11.90374841 | H45: 141.6992263
A46: 30 | B46: ='Холт-Винтерс_1'!B31 -> 193 | C46: 212.6354911 | D46: 3.288883856 | E46: 0.9064424515 | F46: 192.6274668 | G46: 0.3725331848 | H46: 0.1387809738
A47: 31 | B47: ='Холт-Винтерс_1'!B32 -> 211 | C47: 219.9813759 | D47: 4.217590337 | E47: 0.9208375894 | F47: 198.8312809 | G47: 12.16871912 | H47: 148.077725
A48: 32 | B48: ='Холт-Винтерс_1'!B33 -> 208 | C48: 224.2826373 | D48: 4.236743863 | E48: 0.9266209437 | F48: 207.7474577 | G48: 0.2525423357 | H48: 0.0637776313
A49: 33 | B49: ='Холт-Винтерс_1'!B34 -> 216 | C49: 225.4479838 | D49: 3.533656363 | E49: 0.9884907529 | F49: 225.8892951 | G49: -9.889295147 | H49: 97.7981585
A50: 34 | B50: ='Холт-Винтерс_1'!B35 -> 218 | C50: 224.5432151 | D50: 2.517636377 | E50: 1.016201453 | F50: 232.6914755 | G50: -14.69147546 | H50: 215.8394511
A51: 35 | B51: ='Холт-Винтерс_1'!B36 -> 264 | C51: 234.6852487 | D51: 4.262971689 | E51: 1.048052656 | F51: 237.9717284 | G51: 26.02827158 | H51: 677.4709212
A52: 36 | B52: ='Холт-Винтерс_1'!B37 -> 304 | C52: 243.1057979 | D52: 5.214701611 | E52: =E40+E$2*(1-C$2)*G52/(C51+D51) -> 1.204004908 | F52: 287.69483 | G52: 16.30517002 | H52: 265.8585694
A53: 37 | B53: =(C$52+(A53-A$52)*D$52)*E41 -> 245.3986114
A54: 38 | B54: =(C$52+(A54-A$52)*D$52)*E42 -> 263.539577
A55: 39 | B55: 241.3963985
A56: 40 | B56: 240.8935056
A57: 41 | B57: 280.7568707
A58: 42 | B58: 248.7223769
A59: 43 | B59: 257.4742098
A60: 44 | B60: 263.9233377
A61: 45 | B61: 286.6999921
A62: 46 | B62: 300.0363387
A63: 47 | B63: 314.9057778
A64: 48 | B64: 368.0428898

Sheet Х-В автокоррекция
D1: Сдвиг
A2: Месяц | B2: Ошибка прогноза | C2: Отклонение от среднего | D2: 1 | E2: 2 | F2: 3 | G2: 4 | H2: 5 | I2: 6 | J2: 7 | K2: 8 | L2: 9 | M2: 10 | N2: 11 | O2: 12
A3: 1 | B3: 20.09583079 | C3: =B3-B$39 -> 18.84099204 | D3: =IF(ROW()-D$2>2,OFFSET($C3,-D$2,0),0) -> 0 | E3: =IF(ROW()-E$2>2,OFFSET($C3,-E$2,0),0) -> 0 | F3: 0 | G3: 0 | H3: 0 | I3: 0 | J3: 0 | K3: 0 | L3: 0 | M3: 0 | N3: 0 | O3: 0
A4: 2 | B4: 8.313109923 | C4: 7.058271179 | D4: =IF(ROW()-D$2>2,OFFSET($C4,-D$2,0),0) -> 18.84099204 | E4: 0 | F4: 0 | G4: 0 | H4: 0 | I4: 0 | J4: 0 | K4: 0 | L4: 0 | M4: 0 | N4: 0 | O4: 0
A5: 3 | B5: -5.223871827 | C5: -6.478710571 | D5: 7.058271179 | E5: 18.84099204 | F5: 0 | G5: 0 | H5: 0 | I5: 0 | J5: 0 | K5: 0 | L5: 0 | M5: 0 | N5: 0 | O5: 0
A6: 4 | B6: -7.811364029 | C6: -9.066202773 | D6: -6.478710571 | E6: 7.058271179 | F6: 18.84099204 | G6: 0 | H6: 0 | I6: 0 | J6: 0 | K6: 0 | L6: 0 | M6: 0 | N6: 0 | O6: 0
A7: 5 | B7: -8.965388141 | C7: -10.22022688 | D7: -9.066202773 | E7: -6.478710571 | F7: 7.058271179 | G7: 18.84099204 | H7: 0 | I7: 0 | J7: 0 | K7: 0 | L7: 0 | M7: 0 | N7: 0 | O7: 0
A8: 6 | B8: 9.715991969 | C8: 8.461153225 | D8: -10.22022688 | E8: -9.066202773 | F8: -6.478710571 | G8: 7.058271179 | H8: 18.84099204 | I8: 0 | J8: 0 | K8: 0 | L8: 0 | M8: 0 | N8: 0 | O8: 0
A9: 7 | B9: -6.790092408 | C9: -8.044931152 | D9: 8.461153225 | E9: -10.22022688 | F9: -9.066202773 | G9: -6.478710571 | H9: 7.058271179 | I9: 18.84099204 | J9: 0 | K9: 0 | L9: 0 | M9: 0 | N9: 0 | O9: 0
A10: 8 | B10: -10.31814281 | C10: -11.57298155 | D10: -8.044931152 | E10: 8.461153225 | F10: -10.22022688 | G10: -9.066202773 | H10: -6.478710571 | I10: 7.058271179 | J10: 18.84099204 | K10: 0 | L10: 0 | M10: 0 | N10: 0 | O10: 0
A11: 9 | B11: -10.67365057 | C11: -11.92848931 | D11: -11.57298155 | E11: -8.044931152 | F11: 8.461153225 | G11: -10.22022688 | H11: -9.066202773 | I11: -6.478710571 | J11: 7.058271179 | K11: 18.84099204 | L11: 0 | M11: 0 | N11: 0 | O11: 0
A12: 10 | B12: -3.377633765 | C12: -4.632472509 | D12: -11.92848931 | E12: -11.57298155 | F12: -8.044931152 | G12: 8.461153225 | H12: -10.22022688 | I12: -9.066202773 | J12: -6.478710571 | K12: 7.058271179 | L12: 18.84099204 | M12: 0 | N12: 0 | O12: 0
A13: 11 | B13: -4.823705028 | C13: -6.078543772 | D13: -4.632472509 | E13: -11.92848931 | F13: -11.57298155 | G13: -8.044931152 | H13: 8.461153225 | I13: -10.22022688 | J13: -9.066202773 | K13: -6.478710571 | L13: 7.058271179 | M13: 18.84099204 | N13: 0 | O13: 0
A14: 12 | B14: -0.4716995155 | C14: -1.72653826 | D14: -6.078543772 | E14: -4.632472509 | F14: -11.92848931 | G14: -11.57298155 | H14: -8.044931152 | I14: 8.461153225 | J14: -10.22022688 | K14: -9.066202773 | L14: -6.478710571 | M14: 7.058271179 | N14: 18.84099204 | O14: 0
A15: 13 | B15: 1.409368245 | C15: 0.1545295006 | D15: -1.72653826 | E15: -6.078543772 | F15: -4.632472509 | G15: -11.92848931 | H15: -11.57298155 | I15: -8.044931152 | J15: 8.461153225 | K15: -10.22022688 | L15: -9.066202773 | M15: -6.478710571 | N15: 7.058271179 | O15: 18.84099204
A16: 14 | B16: -11.57581928 | C16: -12.83065802 | D16: 0.1545295006 | E16: -1.72653826 | F16: -6.078543772 | G16: -4.632472509 | H16: -11.92848931 | I16: -11.57298155 | J16: -8.044931152 | K16: 8.461153225 | L16: -10.22022688 | M16: -9.066202773 | N16: -6.478710571 | O16: 7.058271179
A17: 15 | B17: 5.785854908 | C17: 4.531016164 | D17: -12.83065802 | E17: 0.1545295006 | F17: -1.72653826 | G17: -6.078543772 | H17: -4.632472509 | I17: -11.92848931 | J17: -11.57298155 | K17: -8.044931152 | L17: 8.461153225 | M17: -10.22022688 | N17: -9.066202773 | O17: -6.478710571
A18: 16 | B18: -7.97013914 | C18: -9.224977884 | D18: 4.531016164 | E18: -12.83065802 | F18: 0.1545295006 | G18: -1.72653826 | H18: -6.078543772 | I18: -4.632472509 | J18: -11.92848931 | K18: -11.57298155 | L18: -8.044931152 | M18: 8.461153225 | N18: -10.22022688 | O18: -9.066202773
A19: 17 | B19: 13.83684858 | C19: 12.58200984 | D19: -9.224977884 | E19: 4.531016164 | F19: -12.83065802 | G19: 0.1545295006 | H19: -1.72653826 | I19: -6.078543772 | J19: -4.632472509 | K19: -11.92848931 | L19: -11.57298155 | M19: -8.044931152 | N19: 8.461153225 | O19: -10.22022688
A20: 18 | B20: 5.240021276 | C20: 3.985182531 | D20: 12.58200984 | E20: -9.224977884 | F20: 4.531016164 | G20: -12.83065802 | H20: 0.1545295006 | I20: -1.72653826 | J20: -6.078543772 | K20: -4.632472509 | L20: -11.92848931 | M20: -11.57298155 | N20: -8.044931152 | O20: 8.461153225
A21: 19 | B21: 1.037400152 | C21: -0.217438592 | D21: 3.985182531 | E21: 12.58200984 | F21: -9.224977884 | G21: 4.531016164 | H21: -12.83065802 | I21: 0.1545295006 | J21: -1.72653826 | K21: -6.078543772 | L21: -4.632472509 | M21: -11.92848931 | N21: -11.57298155 | O21: -8.044931152
A22: 20 | B22: 5.530987771 | C22: 4.276149027 | D22: -0.217438592 | E22: 3.985182531 | F22: 12.58200984 | G22: -9.224977884 | H22: 4.531016164 | I22: -12.83065802 | J22: 0.1545295006 | K22: -1.72653826 | L22: -6.078543772 | M22: -4.632472509 | N22: -11.92848931 | O22: -11.57298155
A23: 21 | B23: 7.136767765 | C23: 5.881929021 | D23: 4.276149027 | E23: -0.217438592 | F23: 3.985182531 | G23: 12.58200984 | H23: -9.224977884 | I23: 4.531016164 | J23: -12.83065802 | K23: 0.1545295006 | L23: -1.72653826 | M23: -6.078543772 | N23: -4.632472509 | O23: -11.92848931
A24: 22 | B24: 0.6677565479 | C24: -0.5870821962 | D24: 5.881929021 | E24: 4.276149027 | F24: -0.217438592 | G24: 3.985182531 | H24: 12.58200984 | I24: -9.224977884 | J24: 4.531016164 | K24: -12.83065802 | L24: 0.1545295006 | M24: -1.72653826 | N24: -6.078543772 | O24: -4.632472509
A25: 23 | B25: 4.23591489 | C25: 2.981076146 | D25: -0.5870821962 | E25: 5.881929021 | F25: 4.276149027 | G25: -0.217438592 | H25: 3.985182531 | I25: 12.58200984 | J25: -9.224977884 | K25: 4.531016164 | L25: -12.83065802 | M25: 0.1545295006 | N25: -1.72653826 | O25: -6.078543772
A26: 24 | B26: -0.4283783293 | C26: -1.683217073 | D26: 2.981076146 | E26: -0.5870821962 | F26: 5.881929021 | G26: 4.276149027 | H26: -0.217438592 | I26: 3.985182531 | J26: 12.58200984 | K26: -9.224977884 | L26: 4.531016164 | M26: -12.83065802 | N26: 0.1545295006 | O26: -1.72653826
A27: 25 | B27: -1.674942378 | C27: -2.929781122 | D27: -1.683217073 | E27: 2.981076146 | F27: -0.5870821962 | G27: 5.881929021 | H27: 4.276149027 | I27: -0.217438592 | J27: 3.985182531 | K27: 12.58200984 | L27: -9.224977884 | M27: 4.531016164 | N27: -12.83065802 | O27: 0.1545295006
A28: 26 | B28: 15.50712019 | C28: 14.25228145 | D28: -2.929781122 | E28: -1.683217073 | F28: 2.981076146 | G28: -0.5870821962 | H28: 5.881929021 | I28: 4.276149027 | J28: -0.217438592 | K28: 3.985182531 | L28: 12.58200984 | M28: -9.224977884 | N28: 4.531016164 | O28: -12.83065802
A29: 27 | B29: -4.213227908 | C29: -5.468066652 | D29: 14.25228145 | E29: -2.929781122 | F29: -1.683217073 | G29: 2.981076146 | H29: -0.5870821962 | I29: 5.881929021 | J29: 4.276149027 | K29: -0.217438592 | L29: 3.985182531 | M29: 12.58200984 | N29: -9.224977884 | O29: 4.531016164
A30: 28 | B30: 12.33635467 | C30: 11.08151593 | D30: -5.468066652 | E30: 14.25228145 | F30: -2.929781122 | G30: -1.683217073 | H30: 2.981076146 | I30: -0.5870821962 | J30: 5.881929021 | K30: 4.276149027 | L30: -0.217438592 | M30: 3.985182531 | N30: 12.58200984 | O30: -9.224977884
A31: 29 | B31: -11.90370497 | C31: -13.15854372 | D31: 11.08151593 | E31: -5.468066652 | F31: 14.25228145 | G31: -2.929781122 | H31: -1.683217073 | I31: 2.981076146 | J31: -0.5870821962 | K31: 5.881929021 | L31: 4.276149027 | M31: -0.217438592 | N31: 3.985182531 | O31: 12.58200984
A32: 30 | B32: 0.3725680494 | C32: -0.8822706947 | D32: -13.15854372 | E32: 11.08151593 | F32: -5.468066652 | G32: 14.25228145 | H32: -2.929781122 | I32: -1.683217073 | J32: 2.981076146 | K32: -0.5870821962 | L32: 5.881929021 | M32: 4.276149027 | N32: -0.217438592 | O32: 3.985182531
A33: 31 | B33: 12.16874785 | C33: 10.91390911 | D33: -0.8822706947 | E33: -13.15854372 | F33: 11.08151593 | G33: -5.468066652 | H33: 14.25228145 | I33: -2.929781122 | J33: -1.683217073 | K33: 2.981076146 | L33: -0.5870821962 | M33: 5.881929021 | N33: 4.276149027 | O33: -0.217438592
A34: 32 | B34: 0.2525701653 | C34: -1.002268579 | D34: 10.91390911 | E34: -0.8822706947 | F34: -13.15854372 | G34: 11.08151593 | H34: -5.468066652 | I34: 14.25228145 | J34: -2.929781122 | K34: -1.683217073 | L34: 2.981076146 | M34: -0.5870821962 | N34: 5.881929021 | O34: 4.276149027
A35: 33 | B35: -9.889265327 | C35: -11.14410407 | D35: -1.002268579 | E35: 10.91390911 | F35: -0.8822706947 | G35: -13.15854372 | H35: 11.08151593 | I35: -5.468066652 | J35: 14.25228145 | K35: -2.929781122 | L35: -1.683217073 | M35: 2.981076146 | N35: -0.5870821962 | O35: 5.881929021
A36: 34 | B36: -14.69145138 | C36: -15.94629013 | D36: -11.14410407 | E36: -1.002268579 | F36: 10.91390911 | G36: -0.8822706947 | H36: -13.15854372 | I36: 11.08151593 | J36: -5.468066652 | K36: 14.25228145 | L36: -2.929781122 | M36: -1.683217073 | N36: 2.981076146 | O36: -0.5870821962
A37: 35 | B37: 26.02828079 | C37: 24.77344205 | D37: -15.94629013 | E37: -11.14410407 | F37: -1.002268579 | G37: 10.91390911 | H37: -0.8822706947 | I37: -13.15854372 | J37: 11.08151593 | K37: -5.468066652 | L37: 14.25228145 | M37: -2.929781122 | N37: -1.683217073 | O37: 2.981076146
A38: 36 | B38: 16.30517706 | C38: 15.05033831 | D38: 24.77344205 | E38: -15.94629013 | F38: -11.14410407 | G38: -1.002268579 | H38: 10.91390911 | I38: -0.8822706947 | J38: -13.15854372 | K38: 11.08151593 | L38: -5.468066652 | M38: 14.25228145 | N38: -2.929781122 | O38: -1.683217073
B39: =AVERAGE(B3:B38) -> 1.254838744 | C39: =SUMPRODUCT($C3:$C38,C3:C38) -> 3493.978174 | D39: =SUMPRODUCT($C3:$C38,D3:D38) -> 90.74967109 | E39: -353.6478885 | F39: -456.7974874 | G39: 506.623001 | H39: 955.6111557 | I39: -522.0466546 | J39: -224.0851588 | K39: -516.8209009 | L39: 296.5835948 | M39: -282.966736 | N39: 255.4871497 | O39: -752.3639471
C41: Автокорреляция | D41: =D39/$C39 -> 0.02597316485 | E41: -0.1012163989 | F41: -0.1307385063 | G41: 0.1449989026 | H41: 0.2735023255 | I41: -0.1494132558 | J41: -0.06413467619 | K41: -0.14791761 | L41: 0.08488421508 | M41: -0.08098697872 | N41: 0.07312213671 | O41: -0.2153316105
C42: Верхняя граница | D42: =2/SQRT(36) -> 0.3333333333 | E42: =2/SQRT(36) -> 0.3333333333 | F42: 0.3333333333 | G42: 0.3333333333 | H42: 0.3333333333 | I42: 0.3333333333 | J42: 0.3333333333 | K42: 0.3333333333 | L42: 0.3333333333 | M42: 0.3333333333 | N42: 0.3333333333 | O42: 0.3333333333
C43: Нижняя граница | D43: =-2/SQRT(36) -> -0.3333333333 | E43: =-2/SQRT(36) -> -0.3333333333 | F43: -0.3333333333 | G43: -0.3333333333 | H43: -0.3333333333 | I43: -0.3333333333 | J43: -0.3333333333 | K43: -0.3333333333 | L43: -0.3333333333 | M43: -0.3333333333 | N43: -0.3333333333 | O43: =-2/SQRT(36) -> -0.3333333333

Sheet Интервал
A1: Всего месяцев | C1: Константа сглаживания (альфа) | D1: Константа сглаживания тренда (гамма) | E1: Константа сглаживания сезонности (дельта) | G1: Сумма квадратов ошибок | H1: Стандартная ошибка
A2: 36 | C2: 0.3070034712 | D2: 0.2289145317 | E2: 0 | G2: =SUM(H17:H52) -> 3550.664504 | H2: =SQRT(G2/(36-3)) -> 10.37284407
A4: Месяц | B4: Продажи, шт. (спрос) | C4: Уровень | D4: Тренд | E4: Сезонный коэффициент | F4: Одношаговый прогноз | G4: Ошибка прогноза | H4: Квадрат ошибки
A5: -11 | E5: 0.9882333992
A6: -10 | E6: 1.039459514
A7: -9 | E7: 0.9329332917
A8: -8 | E8: 0.9125977559
A9: -7 | E9: 1.043010605
A10: -6 | E10: 0.9064424515
A11: -5 | E11: 0.9208375894
A12: -4 | E12: 0.9266209437
A13: -3 | E13: 0.9884907529
A14: -2 | E14: 1.016201453
A15: -1 | E15: 1.048052656
A16: 0 | C16: 144.42 | D16: 2.2095 | E16: 1.204004908
A17: 1 | B17: 165 | C17: =C16+D16+C$2*G17/E5 -> 152.8724481 | D17: =D16+D$2*C$2*G17/E5 -> 3.638601538 | E17: =E5+E$2*(1-C$2)*G17/(C16+D16) -> 0.9882333992 | F17: =(C16+D16)*E5 -> 144.9041692 | G17: =B17-F17 -> 20.09583079 | H17: =G17^2 -> 403.842415
A18: 2 | B18: 171 | C18: =C17+D17+C$2*G18/E6 -> 158.9663167 | D18: =D17+D$2*C$2*G18/E6 -> 4.200647841 | E18: =E6+E$2*(1-C$2)*G18/(C17+D17) -> 1.039459514 | F18: =(C17+D17)*E6 -> 162.6868996 | G18: =B18-F18 -> 8.31310039 | H18: =G18^2 -> 69.1076381
A19: 3 | B19: 147 | C19: 161.4479205 | D19: 3.80713369 | E19: 0.9329332917 | F19: 152.2238933 | G19: -5.223893286 | H19: 27.28906106
A20: 4 | B20: 143 | C20: 162.6272542 | D20: 3.205592094 | E20: 0.9125977559 | F20: 150.8113916 | G20: -7.811391608 | H20: 61.01783885
A21: 5 | B21: 164 | C21: 163.1939333 | D21: 2.60150656 | E21: 1.043010605 | F21: 172.9654173 | G21: -8.965417341 | H21: 80.3787081
A22: 6 | B22: 160 | C22: 169.0861486 | D22: 3.3547976 | E22: 0.9064424515 | F22: 150.284025 | G22: 9.715975009 | H22: 94.40017037
A23: 7 | B23: 152 | C23: 170.177153 | D23: 2.836582441 | E23: 0.9208375894 | F23: 158.7901052 | G23: -6.790105195 | H23: 46.10552857
A24: 8 | B24: 150 | C24: 169.5951767 | D24: 2.054024672 | E24: 0.9266209437 | F24: 160.3181508 | G24: -10.3181508 | H24: 106.4642359
A25: 9 | B25: 159 | C25: 168.3342011 | D25: 1.295172945 | E25: 0.9884907529 | F25: 169.6736483 | G25: -10.67364831 | H25: 113.9267681
A26: 10 | B26: 169 | C26: 168.6089662 | D26: 1.061586752 | E26: 1.016201453 | F26: 172.3776165 | G26: -3.377616455 | H26: 11.40829291
A27: 11 | B27: 173 | C27: 168.2575662 | D27: 0.7381335436 | E27: 1.048052656 | F27: 177.8236736 | G27: -4.823673639 | H27: 23.26782737
A28: 12 | B28: 203 | C28: 168.8754355 | D28: 0.7106033091 | E28: 1.204004908 | F28: 203.4716518 | G28: -0.4716518258 | H28: 0.2224554448
A29: 13 | B29: 169 | C29: 170.0238853 | D29: 0.8108327299 | E29: 0.9882333992 | F29: 167.5905876 | G29: 1.409412436 | H29: 1.986443415
A30: 14 | B30: 166 | C30: 167.4158234 | D30: 0.02819808198 | E30: 1.039459514 | F30: 177.575773 | G30: -11.57577296 | H30: 133.9985197
A31: 15 | B31: 162 | C31: 169.3480062 | D31: 0.4640478502 | E31: 0.9329332917 | F31: 156.2141022 | G31: 5.785897845 | H31: 33.47661387
A32: 16 | B32: 147 | C32: 167.1308638 | D32: -0.1497155592 | E32: 0.9125977559 | F32: 154.9700995 | G32: -7.970099461 | H32: 63.52248542
A33: 17 | B33: 188 | C33: 171.0539484 | D33: 0.7826075795 | E33: 1.043010605 | F33: 174.1631084 | G33: 13.83689158 | H33: 191.4595685
A34: 18 | B34: 161 | C34: 173.6113116 | D34: 1.188874929 | E34: 0.9064424515 | F34: 155.7599491 | G34: 5.240050931 | H34: 27.45813376
A35: 19 | B35: 162 | C35: 175.1460573 | D35: 1.268049775 | E35: 0.9208375894 | F35: 160.9625824 | G35: 1.037417622 | H35: 1.076235322
A36: 20 | B36: 169 | C36: 178.2466085 | D36: 1.687535992 | E36: 0.9266209437 | F36: 163.4690064 | G36: 5.530993629 | H36: 30.59189052
A37: 21 | B37: 185 | C37: 182.1506657 | D37: 2.194929904 | E37: 0.9884907529 | F37: 177.863238 | G37: 7.136762001 | H37: 50.93337186
A38: 22 | B38: 188 | C38: 184.5473252 | D38: 2.241108722 | E38: 1.016201453 | F38: 187.3322622 | G38: 0.6677378254 | H38: 0.4458738035
A39: 23 | B39: 200 | C39: 188.0292414 | D39: 2.525147601 | E39: 1.048052656 | F39: 195.7641142 | G39: 4.235885801 | H39: 17.94272852
A40: 24 | B40: 229 | C40: 190.4451484 | D40: 2.500140826 | E40: 1.204004908 | F40: 229.4284196 | G40: -0.4284195538 | H40: 0.183543314
A41: 25 | B41: 189 | C41: 192.4249421 | D41: 2.381025817 | E41: 0.9882333992 | F41: 190.674979 | G41: -1.674979006 | H41: 2.805554669
A42: 26 | B42: 218 | C42: 199.3859716 | D42: 3.429455209 | E42: 1.039459514 | F42: 202.4929168 | G42: 15.50708322 | H42: 240.4696299
A43: 27 | B43: 185 | C43: 201.428954 | D43: 3.112071448 | E43: 0.9329332917 | F43: 189.2132637 | G43: -4.213263724 | H43: 17.75159121
A44: 28 | B44: 199 | C44: 208.6910388 | D44: 4.062069794 | E44: 0.9125977559 | F44: 186.6636808 | G44: 12.33631915 | H44: 152.1847702
A45: 29 | B45: 210 | C45: 209.2493167 | D45: 3.260000917 | E45: 1.043010605 | F45: 221.9037484 | G45: -11.90374841 | H45: 141.6992263
A46: 30 | B46: 193 | C46: 212.6354911 | D46: 3.288883856 | E46: 0.9064424515 | F46: 192.6274668 | G46: 0.3725331848 | H46: 0.1387809738
A47: 31 | B47: 211 | C47: 219.9813759 | D47: 4.217590337 | E47: 0.9208375894 | F47: 198.8312809 | G47: 12.16871912 | H47: 148.077725
A48: 32 | B48: 208 | C48: 224.2826373 | D48: 4.236743863 | E48: 0.9266209437 | F48: 207.7474577 | G48: 0.2525423357 | H48: 0.0637776313
A49: 33 | B49: 216 | C49: 225.4479838 | D49: 3.533656363 | E49: 0.9884907529 | F49: 225.8892951 | G49: -9.889295147 | H49: 97.7981585
A50: 34 | B50: 218 | C50: 224.5432151 | D50: 2.517636377 | E50: 1.016201453 | F50: 232.6914755 | G50: -14.69147546 | H50: 215.8394511
A51: 35 | B51: 264 | C51: 234.6852487 | D51: 4.262971689 | E51: 1.048052656 | F51: 237.9717284 | G51: 26.02827158 | H51: 677.4709212
A52: 36 | B52: 304 | C52: 243.1057979 | D52: 5.214701611 | E52: 1.204004908 | F52: 287.69483 | G52: 16.30517002 | H52: 265.8585694
A53: 37 | B53: =F53+G53 -> 243.2709743 | C53: =C52+D52+C$2*G53/E41 -> 247.6595302 | D53: =D52+D$2*C$2*G53/E41 -> 5.06339613 | E53: =E41+E$2*(1-C$2)*G53/(C52+D52) -> 0.9882333992 | F53: =(C52+D52)*E41 -> 245.3986114 | G53: =NORMINV(RAND(),0,H$2) -> -2.127637023
A54: 38 | B54: =F54+G54 -> 252.2704442 | C54: =C53+D53+C$2*G54/E42 -> 249.6439689 | D54: =D53+D$2*C$2*G54/E42 -> 4.358578022 | E54: 1.039459514 | F54: =(C53+D53)*E42 -> 262.6952503 | G54: -10.42480603
A55: 39 | B55: 234.0463023 | C55: 253.0412809 | D55: 4.138530273 | E55: 0.9329332917 | F55: =(C54+D54)*E43 -> 236.9674322 | G55: -2.921129924
A56: 40 | B56: 245.3290771 | C56: 260.7549197 | D56: 4.956924555 | E56: 0.9125977559 | F56: 234.7017186 | G56: 10.62735857
A57: 41 | B57: 295.6201198 | C57: 271.1512689 | D57: 6.202087906 | E57: 1.043010605 | F57: 277.1402713 | G57: 18.47984843
A58: 42 | B58: 254.6666348 | C58: 278.4580902 | D58: 6.454977422 | E58: 0.9064424515 | F58: 251.4048567 | G58: 3.261778098
A59: 43 | B59: 240.3375837 | C59: 277.5713304 | D59: 4.774347093 | E59: 0.9208375894 | F59: 262.3586623 | G59: -22.0210786
A60: 44 | B60: 267.5755858 | C60: 284.316395 | D60: 5.225472972 | E60: 0.9266209437 | F60: 261.6274181 | G60: 5.9481677
A61: 45 | B61: 302.3752499 | C61: 294.5626068 | D61: 6.37479305 | E61: 0.9884907529 | F61: 286.2094591 | G61: 16.16579086
A62: 46 | B62: 318.6109727 | C62: 304.803774 | D62: 7.259862267 | E62: 1.016201453 | F62: 305.8130231 | G62: 12.79794969
A63: 47 | B63: 339.9847032 | C63: 315.8498945 | D63: 8.126591814 | E63: 1.048052656 | F63: 327.0591227 | G63: 12.92558048
A64: 48 | B64: 374.8739408 | C64: 320.1018994 | D64: 7.239642552 | E64: 1.204004908 | F64: 390.0692795 | G64: -15.19533871
A66: =PERCENTILE(A71:A1070,0.975) -> 263.5924575 | B66: =PERCENTILE(B71:B1070,0.975) -> 284.2848013 | C66: 264.7001118 | D66: 266.1974262 | E66: 309.3789777 | F66: 279.5457584 | G66: 291.2321276 | H66: 300.1702782 | I66: 326.6543003 | J66: 348.214678 | K66: 370.743848 | L66: 436.8168565
A67: =PERCENTILE(A71:A1070,0.025) -> 223.9601659 | B67: 240.7928264 | C67: 218.6764816 | D67: 216.8198489 | E67: 251.6614619 | F67: 220.213008 | G67: 224.3302767 | H67: 230.7294853 | I67: 243.5265647 | J67: 254.1289407 | K67: 263.2932 | L67: 302.7681048
A69: Симуляция продаж
A70: 37 | B70: 38 | C70: 39 | D70: 40 | E70: 41 | F70: 42 | G70: 43 | H70: 44 | I70: 45 | J70: 46 | K70: 47 | L70: 48
A71: 253.8945953 | B71: 257.5109209 | C71: 236.4882123 | D71: 235.1198579 | E71: 287.358643 | F71: 242.2021326 | G71: 274.5900651 | H71: 274.0320306 | I71: 297.0168497 | J71: 299.9144642 | K71: 341.4392013 | L71: 373.5002268
A72: 231.7575565 | B72: 255.2887445 | C72: 225.7910955 | D72: 235.913185 | E72: 250.3138334 | F72: 236.7738113 | G72: 237.426184 | H72: 218.7359588 | I72: 245.404207 | J72: 244.9424847 | K72: 261.8966726 | L72: 294.1426114
A73: 240.5799056 | B73: 264.4973456 | C73: 247.9508049 | D73: 225.7031938 | E73: 285.5385992 | F73: 237.3214694 | G73: 240.5528801 | H73: 267.4181158 | I73: 262.6470374 | J73: 281.6925087 | K73: 291.7878327 | L73: 344.4557706
A74: 233.0409598 | B74: 248.8974718 | C74: 255.7546047 | D74: 246.0045166 | E74: 280.6629254 | F74: 259.2719656 | G74: 248.712715 | H74: 255.1523949 | I74: 285.5447786 | J74: 293.1707159 | K74: 321.7166236 | L74: 362.8083266
A75: 251.231183 | B75: 259.9401275 | C75: 243.998042 | D75: 227.3273104 | E75: 261.1238238 | F75: 240.8568251 | G75: 253.8479678 | H75: 246.2876817 | I75: 277.2995059 | J75: 272.3534673 | K75: 294.8678899 | L75: 344.1602412
A76: 243.9917683 | B76: 253.5688907 | C76: 229.5657881 | D76: 230.6574336 | E76: 285.3715785 | F76: 248.9168373 | G76: 269.6427988 | H76: 279.3504228 | I76: 298.5968465 | J76: 299.7785463 | K76: 332.5369748 | L76: 388.3257499
A77: 253.8220576 | B77: 264.230749 | C77: 242.5809929 | D77: 245.7452014 | E77: 287.7681688 | F77: 246.62259 | G77: 278.8591906 | H77: 273.5978598 | I77: 310.9569071 | J77: 320.5235423 | K77: 346.6545413 | L77: 398.3415957
A78: 244.4757767 | B78: 260.4292206 | C78: 242.49026 | D78: 246.856753 | E78: 285.1529512 | F78: 240.9879536 | G78: 246.382555 | H78: 267.5104114 | I78: 262.7642751 | J78: 299.0370856 | K78: 315.5134779 | L78: 352.066599
A79: 248.2931216 | B79: 259.0150834 | C79: 224.7124871 | D79: 230.2345454 | E79: 270.7807845 | F79: 231.5181731 | G79: 246.5630663 | H79: 250.3886848 | I79: 264.6667111 | J79: 270.4461881 | K79: 277.2733847 | L79: 324.6185594
A80: 247.3604245 | B80: 276.4646447 | C80: 232.0342242 | D80: 250.2408419 | E80: 290.6413828 | F80: 238.4548266 | G80: 275.0087058 | H80: 257.6124655 | I80: 292.2179701 | J80: 292.5665938 | K80: 308.8720965 | L80: 360.3843387
A81: 239.7246104 | B81: 241.7310914 | C81: 234.0277141 | D81: 245.8373826 | E81: 260.8235992 | F81: 243.5175451 | G81: 254.2928627 | H81: 285.668106 | I81: 291.0406632 | J81: 312.0639034 | K81: 320.2963217 | L81: 385.0074612
A82: 234.4662401 | B82: 270.1669903 | C82: 254.2082465 | D82: 252.9373514 | E82: 300.9066026 | F82: 272.3136991 | G82: 268.0444767 | H82: 287.2316233 | I82: 320.363169 | J82: 349.7545181 | K82: 355.4941397 | L82: 434.2935674
A83: 226.0408269 | B83: 243.0043197 | C83: 221.1896099 | D83: 227.2695852 | E83: 262.2973472 | F83: 236.7607628 | G83: 246.1147251 | H83: 245.0457328 | I83: 265.4990399 | J83: 282.0996023 | K83: 293.4356014 | L83: 329.5478419
A84: 233.617127 | B84: 250.2193771 | C84: 235.0920746 | D84: 234.3659806 | E84: 274.7366391 | F84: 250.7686977 | G84: 243.6019029 | H84: 250.0924053 | I84: 280.4475282 | J84: 264.8989342 | K84: 284.4257477 | L84: 335.6690474
A85: 245.3892626 | B85: 267.3752878 | C85: 253.7142353 | D85: 243.0034002 | E85: 285.4084183 | F85: 248.1940403 | G85: 246.8924879 | H85: 252.161775 | I85: 286.8840622 | J85: 287.4446814 | K85: 285.5551736 | L85: 342.3563166
A86: 257.9810528 | B86: 285.2405547 | C86: 253.4759367 | D86: 259.0113194 | E86: 303.5459808 | F86: 271.008259 | G86: 287.232926 | H86: 281.7170411 | I86: 304.3014861 | J86: 325.1190192 | K86: 320.9551386 | L86: 394.4021375
A87: 223.6738862 | B87: 251.0712935 | C87: 240.1247411 | D87: 230.2991825 | E87: 265.992305 | F87: 224.3437312 | G87: 249.7169205 | H87: 236.9278228 | I87: 266.2867772 | J87: 259.8026834 | K87: 271.3249269 | L87: 331.4940797
A88: 250.1340129 | B88: 267.9694164 | C88: 242.6331444 | D88: 228.9177528 | E88: 278.5680341 | F88: 217.6283148 | G88: 231.2856816 | H88: 243.9520999 | I88: 262.52501 | J88: 255.3387604 | K88: 267.8339029 | L88: 313.8890968
A89: 233.6978098 | B89: 263.6667672 | C89: 231.8351811 | D89: 221.3599845 | E89: 278.1813187 | F89: 247.5998993 | G89: 241.3708859 | H89: 247.0833427 | I89: 260.0835451 | J89: 278.7692665 | K89: 282.5279805 | L89: 328.1071276
A90: 244.5419928 | B90: 268.1480726 | C90: 250.6953766 | D90: 248.3367786 | E90: 290.5644922 | F90: 252.8898968 | G90: 271.3790044 | H90: 274.4371967 | I90: 298.0172519 | J90: 306.5269159 | K90: 329.8285923 | L90: 392.8812196
A91: 253.9143212 | B91: 266.3316892 | C91: 243.9969563 | D91: 241.7225212 | E91: 296.6750473 | F91: 260.1448476 | G91: 271.4359464 | H91: 282.1939456 | I91: 291.0621976 | J91: 314.4796819 | K91: 331.0226291 | L91: 375.2893589
A92: 259.729031 | B92: 267.9468548 | C92: 256.4035602 | D92: 241.3325242 | E92: 288.1379173 | F92: 232.2993254 | G92: 253.4746005 | H92: 266.743313 | I92: 260.2974903 | J92: 283.8338143 | K92: 295.4409704 | L92: 352.5496799
A93: 257.4785657 | B93: 257.1506847 | C93: 248.9542675 | D93: 244.4754754 | E93: 283.6472987 | F93: 266.3314732 | G93: 267.0595654 | H93: 256.698942 | I93: 305.5444512 | J93: 308.7005019 | K93: 332.6123862 | L93: 398.0695036
A94: 240.013845 | B94: 277.101736 | C94: 244.8720947 | D94: 238.5150884 | E94: 293.374997 | F94: 238.2117837 | G94: 246.8281989 | H94: 259.2386302 | I94: 281.2202389 | J94: 283.2917231 | K94: 320.3897014 | L94: 345.0494389
A95: 245.990178 | B95: 246.7021339 | C95: 261.1464637 | D95: 239.8706337 | E95: 295.607397 | F95: 239.7484 | G95: 254.9524484 | H95: 274.3313054 | I95: 282.2636803 | J95: 302.9557027 | K95: 308.1332613 | L95: 347.0375705
A96: 251.5637819 | B96: 284.8748827 | C96: 249.3324729 | D96: 239.2188022 | E96: 301.2699148 | F96: 256.1621661 | G96: 274.1301014 | H96: 289.3137393 | I96: 310.5188974 | J96: 337.1412386 | K96: 352.4301947 | L96: 411.914072
A97: 231.6275072 | B97: 272.354083 | C97: 236.7261055 | D97: 243.3990896 | E97: 292.5566711 | F97: 234.4520343 | G97: 258.9831903 | H97: 256.8092634 | I97: 277.5630486 | J97: 278.8021405 | K97: 327.6106981 | L97: 359.6954809
A98: 245.1592712 | B98: 269.6420156 | C98: 263.4405437 | D98: 260.8221552 | E98: 299.0349127 | F98: 257.1252565 | G98: 262.8374938 | H98: 263.9064654 | I98: 282.6016921 | J98: 304.1332368 | K98: 322.433726 | L98: 369.3030999
A99: 245.6931043 | B99: 246.672042 | C99: 214.1590078 | D99: 225.290962 | E99: 258.8665882 | F99: 212.1558033 | G99: 218.1117461 | H99: 242.6588149 | I99: 236.8375112 | J99: 228.8555923 | K99: 236.0761987 | L99: 266.1636208
A100: 223.0445022 | B100: 284.1872352 | C100: 233.9281732 | D100: 265.7540299 | E100: 285.129106 | F100: 274.8970168 | G100: 283.1489218 | H100: 285.4229413 | I100: 318.1956821 | J100: 332.7674841 | K100: 342.7590711 | L100: 420.1009692
A101: 250.687398 | B101: 256.0633441 | C101: 230.7758359 | D101: 226.3833878 | E101: 271.8212054 | F101: 239.296173 | G101: 261.1860399 | H101: 247.8298457 | I101: 266.4892224 | J101: 294.9833111 | K101: 290.0822693 | L101: 366.240752
A102: 243.6042871 | B102: 273.4766904 | C102: 245.3791755 | D102: 247.7023717 | E102: 303.5765123 | F102: 261.854564 | G102: 281.0188799 | H102: 287.103248 | I102: 307.9824349 | J102: 336.5716927 | K102: 369.8836461 | L102: 429.027369
A103: 256.1015953 | B103: 276.9529472 | C103: 226.1744377 | D103: 229.722303 | E103: 250.9781355 | F103: 233.9920593 | G103: 234.1484403 | H103: 261.908365 | I103: 276.4254601 | J103: 282.1828117 | K103: 310.7562867 | L103: 363.476712
A104: 239.0052292 | B104: 258.2423865 | C104: 244.9484893 | D104: 226.298229 | E104: 261.2115473 | F104: 237.6498126 | G104: 256.1064209 | H104: 242.4457416 | I104: 269.2672781 | J104: 268.9522571 | K104: 307.3630503 | L104: 360.9875138
A105: 245.396875 | B105: 264.7018761 | C105: 226.3397989 | D105: 251.2442374 | E105: 267.6225568 | F105: 255.9743994 | G105: 272.615692 | H105: 269.6653841 | I105: 293.3035587 | J105: 323.1838475 | K105: 339.8538106 | L105: 385.58982
A106: 232.8487532 | B106: 252.3383575 | C106: 241.6807484 | D106: 238.5782619 | E106: 284.5645012 | F106: 247.4615664 | G106: 257.0008669 | H106: 260.9002978 | I106: 293.0395514 | J106: 296.0641833 | K106: 334.6008518 | L106: 385.1314446
A107: 251.3605656 | B107: 263.0795385 | C107: 252.5965331 | D107: 237.8805847 | E107: 273.7687862 | F107: 243.8193262 | G107: 247.808671 | H107: 239.4488737 | I107: 282.5501654 | J107: 266.752437 | K107: 288.1441597 | L107: 351.3811403
A108: 250.6679333 | B108: 268.2535208 | C108: 240.218697 | D108: 238.095762 | E108: 266.1654349 | F108: 227.005009 | G108: 246.4153017 | H108: 258.2729798 | I108: 276.0626849 | J108: 269.6906715 | K108: 278.5942631 | L108: 333.3861062
A109: 228.3354144 | B109: 274.4638996 | C109: 228.8578127 | D109: 237.4057934 | E109: 271.7201793 | F109: 245.6173898 | G109: 248.4855605 | H109: 261.9143278 | I109: 276.4565195 | J109: 291.9301738 | K109: 299.0904212 | L109: 346.0988773
A110: 247.4573149 | B110: 262.1116264 | C110: 231.5116669 | D110: 245.5773846 | E110: 282.8668546 | F110: 245.3924878 | G110: 251.3242125 | H110: 255.5014778 | I110: 291.233288 | J110: 290.5065877 | K110: 292.8396544 | L110: 345.5043679
A111: 239.8009684 | B111: 257.7450227 | C111: 245.5934063 | D111: 243.2864238 | E111: 284.3260051 | F111: 240.7786288 | G111: 259.3948236 | H111: 256.2776185 | I111: 285.2241193 | J111: 294.8025862 | K111: 290.3849103 | L111: 347.9078279
A112: 253.6301896 | B112: 260.920518 | C112: 254.3632153 | D112: 257.2103752 | E112: 276.5757668 | F112: 253.1784134 | G112: 253.8334404 | H112: 261.108271 | I112: 308.4504298 | J112: 317.7139436 | K112: 301.5072212 | L112: 378.0550037
A113: 234.164711 | B113: 266.5875211 | C113: 258.1141222 | D113: 233.8227166 | E113: 291.3761863 | F113: 241.8276677 | G113: 263.2205682 | H113: 246.668111 | I113: 276.8101108 | J113: 292.772088 | K113: 316.5308865 | L113: 380.3174471
A114: 238.3647225 | B114: 256.5268247 | C114: 234.8944564 | D114: 254.0331171 | E114: 273.8542316 | F114: 254.5559101 | G114: 245.1729321 | H114: 265.5632025 | I114: 285.1194484 | J114: 306.9874952 | K114: 321.7109629 | L114: 376.6924226
A115: 259.5497968 | B115: 259.721666 | C115: 237.9517548 | D115: 221.9960265 | E115: 267.5735518 | F115: 229.8519353 | G115: 231.7145461 | H115: 225.1155769 | I115: 260.7274204 | J115: 259.2155714 | K115: 272.6591142 | L115: 299.544782
A116: 243.127933 | B116: 262.8741355 | C116: 263.3473561 | D116: 250.0373382 | E116: 284.0993999 | F116: 239.9310535 | G116: 276.123707 | H116: 277.8103896 | I116: 292.0510938 | J116: 297.5366938 | K116: 334.4414907 | L116: 385.4625495
A117: 241.8437388 | B117: 265.6553397 | C117: 233.4362391 | D117: 229.4315886 | E117: 231.027735 | F117: 235.9016195 | G117: 231.8347216 | H117: 233.8968002 | I117: 235.7811392 | J117: 245.6657373 | K117: 244.778581 | L117: 281.9476846
A118: 246.3243002 | B118: 259.2013272 | C118: 257.4455995 | D118: 235.3165159 | E118: 270.5435509 | F118: 250.370851 | G118: 255.6119996 | H118: 250.2551086 | I118: 261.4965492 | J118: 297.722464 | K118: 283.6721842 | L118: 341.9086048
A119: 243.9589197 | B119: 268.268687 | C119: 241.4064426 | D119: 261.7050116 | E119: 294.8421 | F119: 263.576792 | G119: 268.8783689 | H119: 293.3805322 | I119: 304.0568116 | J119: 303.3212438 | K119: 328.4381547 | L119: 384.5091033
A120: 226.2115448 | B120: 259.3549296 | C120: 252.5876353 | D120: 255.5386949 | E120: 282.5822112 | F120: 267.4132976 | G120: 268.6118384 | H120: 298.2746542 | I120: 305.6740069 | J120: 312.1866506 | K120: 352.2071901 | L120: 390.7796384
A121: 224.6074189 | B121: 257.4626429 | C121: 236.7370331 | D121: 225.3289604 | E121: 266.097504 | F121: 233.7890278 | G121: 234.2805259 | H121: 231.6453841 | I121: 250.3056124 | J121: 262.6319854 | K121: 253.6607951 | L121: 309.8571284
A122: 226.4752429 | B122: 275.2585917 | C122: 251.7007526 | D122: 228.6546186 | E122: 258.5178403 | F122: 241.1046646 | G122: 237.9093907 | H122: 248.704152 | I122: 260.8341749 | J122: 287.2573075 | K122: 287.4471586 | L122: 336.6999544
A123: 240.9106074 | B123: 267.8744751 | C123: 250.1622404 | D123: 254.7670235 | E123: 267.1957037 | F123: 241.403756 | G123: 259.3078245 | H123: 264.4000385 | I123: 287.4558913 | J123: 304.6721214 | K123: 325.2104445 | L123: 382.4876357
A124: 236.2224421 | B124: 253.8419834 | C124: 241.370854 | D124: 221.771444 | E124: 268.4788323 | F124: 242.4103375 | G124: 239.8692555 | H124: 245.6042112 | I124: 268.593937 | J124: 279.3372832 | K124: 280.8308164 | L124: 336.0790178
A125: 246.6146361 | B125: 269.9321336 | C125: 236.1287183 | D125: 226.6484273 | E125: 266.1131282 | F125: 247.9761424 | G125: 252.7092508 | H125: 277.2609503 | I125: 274.8875657 | J125: 304.6180107 | K125: 322.1816361 | L125: 360.7335859
A126: 232.2255604 | B126: 236.4960235 | C126: 234.5784218 | D126: 226.0088842 | E126: 283.6715311 | F126: 236.0764428 | G126: 236.8628558 | H126: 251.6085538 | I126: 280.2508952 | J126: 277.9335064 | K126: 294.7746709 | L126: 340.570468
A127: 242.7673699 | B127: 243.8060603 | C127: 242.8809109 | D127: 242.6341536 | E127: 281.1834051 | F127: 269.8814039 | G127: 271.2670482 | H127: 280.8173335 | I127: 307.4726352 | J127: 312.8415959 | K127: 329.1724826 | L127: 397.3612268
A128: 260.0389567 | B128: 263.5181451 | C128: 232.2723316 | D128: 251.8926399 | E128: 294.7908438 | F128: 255.7085021 | G128: 271.5328831 | H128: 272.7465866 | I128: 307.1546977 | J128: 293.9664319 | K128: 319.4985251 | L128: 384.9632654
A129: 236.1048837 | B129: 266.6379023 | C129: 241.8573437 | D129: 253.9991031 | E129: 293.2174625 | F129: 262.7873375 | G129: 255.5620848 | H129: 261.960408 | I129: 306.7978421 | J129: 295.1445856 | K129: 330.5287295 | L129: 387.776152
A130: 246.0810309 | B130: 268.5402554 | C130: 245.4463368 | D130: 247.1270152 | E130: 288.8574302 | F130: 255.9085381 | G130: 275.5746747 | H130: 270.9911054 | I130: 308.7832285 | J130: 319.759978 | K130: 320.8047289 | L130: 385.6265519
A131: 236.9716341 | B131: 285.6701253 | C131: 231.7443269 | D131: 235.2732275 | E131: 262.996536 | F131: 229.9851772 | G131: 244.2554511 | H131: 257.6542356 | I131: 274.4889604 | J131: 285.4595864 | K131: 288.952438 | L131: 342.4021735
A132: 234.914441 | B132: 254.5854636 | C132: 234.2990277 | D132: 242.2085291 | E132: 261.7593796 | F132: 238.9433861 | G132: 247.8022714 | H132: 268.3038302 | I132: 271.7270747 | J132: 297.674238 | K132: 306.4082568 | L132: 386.3663604
A133: 258.12828 | B133: 259.7265947 | C133: 254.0098405 | D133: 250.2937458 | E133: 296.7782648 | F133: 247.4418901 | G133: 276.9040119 | H133: 292.0964017 | I133: 308.6356806 | J133: 325.7528142 | K133: 346.8855897 | L133: 410.3936929
A134: 256.46013 | B134: 251.7484378 | C134: 247.6410305 | D134: 237.6581145 | E134: 270.8784071 | F134: 265.3585072 | G134: 269.9658624 | H134: 260.0185076 | I134: 282.1624841 | J134: 299.0249368 | K134: 313.6145845 | L134: 363.0621538
A135: 232.6929932 | B135: 255.6031001 | C135: 234.0615363 | D135: 242.5867134 | E135: 272.7404928 | F135: 252.1051811 | G135: 257.1344835 | H135: 256.6885578 | I135: 287.381311 | J135: 291.2131635 | K135: 320.0564102 | L135: 359.9229365
A136: 241.2995203 | B136: 275.9897857 | C136: 257.6864522 | D136: 255.8876291 | E136: 285.3388607 | F136: 271.638744 | G136: 262.006189 | H136: 288.9436494 | I136: 301.0880711 | J136: 338.5925846 | K136: 344.2021539 | L136: 404.8048985
A137: 252.2480128 | B137: 271.0867746 | C137: 233.1977501 | D137: 260.2529048 | E137: 282.0251669 | F137: 244.7595359 | G137: 249.3427608 | H137: 245.8939685 | I137: 280.7940747 | J137: 279.2047212 | K137: 291.1029474 | L137: 341.7201959
A138: 251.8663108 | B138: 265.7088541 | C138: 248.80876 | D138: 245.6470297 | E138: 271.9143493 | F138: 232.6006643 | G138: 244.8915179 | H138: 275.528899 | I138: 275.4458889 | J138: 299.2305595 | K138: 315.1296454 | L138: 350.8572356
A139: 252.4590915 | B139: 259.3912442 | C139: 231.6280722 | D139: 239.5239837 | E139: 271.4170711 | F139: 259.338457 | G139: 261.0585561 | H139: 256.6466115 | I139: 297.9656161 | J139: 308.5712161 | K139: 312.4309304 | L139: 376.0966645
A140: 237.1669051 | B140: 257.1886272 | C140: 254.0339426 | D140: 244.2564693 | E140: 293.7167614 | F140: 259.0826452 | G140: 253.3705905 | H140: 274.2320439 | I140: 296.0089286 | J140: 326.0114268 | K140: 332.0518377 | L140: 393.4739809
A141: 251.68316 | B141: 264.1857191 | C141: 263.8750301 | D141: 251.917506 | E141: 291.0792294 | F141: 270.6620163 | G141: 259.9487781 | H141: 268.9409168 | I141: 286.8457137 | J141: 296.485172 | K141: 322.9403002 | L141: 387.7752402
A142: 258.5746443 | B142: 269.8247963 | C142: 257.0531546 | D142: 251.7322624 | E142: 269.9020392 | F142: 252.1866913 | G142: 255.5157108 | H142: 273.5212453 | I142: 287.8936244 | J142: 299.3757152 | K142: 301.5904769 | L142: 348.7087605
A143: 232.6472018 | B143: 246.7087658 | C143: 230.8206325 | D143: 213.0928279 | E143: 262.0813726 | F143: 232.7044686 | G143: 248.1303329 | H143: 239.6412253 | I143: 261.1372242 | J143: 286.3524824 | K143: 279.3366489 | L143: 326.1104148
A144: 253.7935767 | B144: 234.934348 | C144: 225.6669417 | D144: 228.1384319 | E144: 253.7546122 | F144: 233.0570789 | G144: 260.8447623 | H144: 253.1311385 | I144: 265.8151058 | J144: 274.4260652 | K144: 307.7998086 | L144: 343.8397839
A145: 246.8699807 | B145: 255.400156 | C145: 230.0981701 | D145: 228.1527903 | E145: 287.2588457 | F145: 258.467408 | G145: 257.8295539 | H145: 271.2072361 | I145: 276.8822572 | J145: 304.2841718 | K145: 333.1444691 | L145: 384.9927563
A146: 242.8420414 | B146: 247.8025041 | C146: 216.7384338 | D146: 228.0276419 | E146: 273.7458367 | F146: 235.5580835 | G146: 240.1571044 | H146: 245.3940209 | I146: 270.1741597 | J146: 271.9270739 | K146: 292.5002375 | L146: 336.1932522
A147: 250.6720716 | B147: 273.5250966 | C147: 245.5183888 | D147: 248.3973359 | E147: 305.3498455 | F147: 259.483195 | G147: 279.9390312 | H147: 292.6191525 | I147: 322.0041647 | J147: 331.9222022 | K147: 346.160866 | L147: 398.0498622
A148: 232.5536939 | B148: 281.7577646 | C148: 249.9419667 | D148: 216.8203554 | E148: 281.9881266 | F148: 239.0321002 | G148: 255.9933619 | H148: 250.4064325 | I148: 265.5704661 | J148: 265.1516504 | K148: 291.3875073 | L148: 332.8083195
A149: 250.49776 | B149: 255.6569101 | C149: 238.4359149 | D149: 241.7152161 | E149: 275.2677642 | F149: 227.1996632 | G149: 204.9782693 | H149: 234.6026296 | I149: 235.9616798 | J149: 247.8120867 | K149: 264.6852049 | L149: 295.7057745
A150: 258.2615293 | B150: 271.0020016 | C150: 248.9102381 | D150: 267.0165915 | E150: 307.8611453 | F150: 271.171314 | G150: 280.6767337 | H150: 287.8798387 | I150: 311.2832212 | J150: 330.6273001 | K150: 350.7464057 | L150: 401.3809689
A151: 247.4160786 | B151: 263.9475197 | C151: 246.1658266 | D151: 236.1759535 | E151: 268.8172121 | F151: 250.0893855 | G151: 254.0857405 | H151: 264.5345549 | I151: 288.8375721 | J151: 287.063705 | K151: 308.5106736 | L151: 364.3793886
A152: 242.8957426 | B152: 261.3670254 | C152: 241.550106 | D152: 246.3566916 | E152: 300.1560328 | F152: 246.6742933 | G152: 265.3087793 | H152: 256.523185 | I152: 262.1939762 | J152: 306.3851713 | K152: 293.6137582 | L152: 367.2666764
A153: 253.9400989 | B153: 256.0764077 | C153: 231.5317166 | D153: 234.6083256 | E153: 271.5278582 | F153: 249.9379978 | G153: 267.2229536 | H153: 268.0772661 | I153: 289.508285 | J153: 303.1409376 | K153: 331.5090032 | L153: 374.0079883
A154: 245.9766645 | B154: 246.6935809 | C154: 259.1164348 | D154: 249.3136989 | E154: 269.1020737 | F154: 241.4357984 | G154: 247.7104253 | H154: 238.2175784 | I154: 268.6757639 | J154: 287.4611966 | K154: 297.366567 | L154: 327.6901673
A155: 252.7124252 | B155: 266.4967607 | C155: 244.584109 | D155: 224.8707493 | E155: 268.3443042 | F155: 241.8646871 | G155: 266.1494074 | H155: 256.0497299 | I155: 294.0972075 | J155: 318.2927597 | K155: 318.4023177 | L155: 383.4239236
A156: 236.8071755 | B156: 265.793476 | C156: 232.9934587 | D156: 247.4519408 | E156: 287.4368818 | F156: 256.8115312 | G156: 252.6519459 | H156: 281.2885097 | I156: 309.6605925 | J156: 321.8260047 | K156: 343.7349356 | L156: 398.8977389
A157: 250.5485017 | B157: 267.485428 | C157: 248.2710995 | D157: 221.2506036 | E157: 291.4764661 | F157: 262.3162839 | G157: 268.4205825 | H157: 260.6627739 | I157: 296.5293042 | J157: 308.0706656 | K157: 330.6367111 | L157: 364.7047471
A158: 238.2785991 | B158: 250.3095191 | C158: 228.4829829 | D158: 230.8091223 | E158: 268.6663892 | F158: 238.632291 | G158: 252.9797522 | H158: 240.7642451 | I158: 275.32752 | J158: 298.254044 | K158: 304.042943 | L158: 346.7096654
A159: 253.8708026 | B159: 263.8308281 | C159: 231.6372219 | D159: 229.9918157 | E159: 267.7217066 | F159: 253.2707714 | G159: 248.555362 | H159: 257.4413369 | I159: 288.7947345 | J159: 286.7086651 | K159: 293.7675994 | L159: 370.179811
A160: 232.0043354 | B160: 254.5064588 | C160: 229.0012634 | D160: 233.4032596 | E160: 285.4181705 | F160: 244.0153875 | G160: 236.3274418 | H160: 256.1784916 | I160: 274.6106382 | J160: 287.6346535 | K160: 296.29763 | L160: 358.8479292
A161: 248.9853673 | B161: 261.1151254 | C161: 260.0308551 | D161: 245.8153061 | E161: 274.4642397 | F161: 245.9334389 | G161: 260.3535214 | H161: 256.0044609 | I161: 287.847747 | J161: 287.0665678 | K161: 312.104312 | L161: 367.9093488
A162: 265.7322486 | B162: 263.7341927 | C162: 241.6641673 | D162: 260.9810973 | E162: 289.026276 | F162: 259.8456965 | G162: 264.6438714 | H162: 285.9256081 | I162: 308.519427 | J162: 315.1400244 | K162: 343.1829634 | L162: 386.3203571
A163: 242.0303442 | B163: 263.9920139 | C163: 234.1131947 | D163: 232.1646999 | E163: 254.0945521 | F163: 228.3168736 | G163: 230.7298213 | H163: 252.5408339 | I163: 255.9968398 | J163: 256.0091423 | K163: 273.789012 | L163: 331.122992
A164: 223.6785242 | B164: 252.6929099 | C164: 236.4939244 | D164: 235.2278106 | E164: 240.7889797 | F164: 230.4062099 | G164: 227.1389244 | H164: 224.5482199 | I164: 225.2941874 | J164: 253.0161525 | K164: 242.804113 | L164: 274.9105346
A165: 247.559608 | B165: 249.9710978 | C165: 236.7884487 | D165: 235.0897492 | E165: 252.8627264 | F165: 238.4813917 | G165: 247.8366556 | H165: 237.2051586 | I165: 253.7184978 | J165: 278.2086222 | K165: 279.5606091 | L165: 311.1212314
A166: 254.2730574 | B166: 266.157695 | C166: 216.8607264 | D166: 229.5423067 | E166: 269.5011385 | F166: 243.2907273 | G166: 262.1040228 | H166: 256.3519354 | I166: 287.0558929 | J166: 292.2207298 | K166: 322.4701757 | L166: 383.1279639
A167: 234.7179463 | B167: 270.521503 | C167: 240.4189245 | D167: 237.3669031 | E167: 285.843906 | F167: 251.5139777 | G167: 263.934504 | H167: 246.701466 | I167: 278.9015452 | J167: 305.6535431 | K167: 322.4451999 | L167: 370.1866261
A168: 265.2203827 | B168: 263.6998987 | C168: 250.050866 | D168: 244.2987391 | E168: 297.2163383 | F168: 245.8702234 | G168: 250.9171871 | H168: 266.1245078 | I168: 285.2499168 | J168: 285.8439514 | K168: 314.7987165 | L168: 353.8517151
A169: 261.347565 | B169: 290.9007615 | C169: 257.5059303 | D169: 261.250415 | E169: 305.8480406 | F169: 271.8827705 | G169: 292.1639248 | H169: 288.3110246 | I169: 313.1630092 | J169: 336.912773 | K169: 350.4012776 | L169: 415.2025217
A170: 245.0581016 | B170: 256.2230812 | C170: 218.4317528 | D170: 234.8293152 | E170: 283.1569095 | F170: 231.0000821 | G170: 258.8026954 | H170: 259.5110394 | I170: 272.5990968 | J170: 295.7408432 | K170: 309.4155654 | L170: 345.1014354
A171: 262.9497354 | B171: 265.8704777 | C171: 242.1289676 | D171: 244.9855031 | E171: 290.1189766 | F171: 266.9878533 | G171: 280.7312337 | H171: 274.0453134 | I171: 308.1928644 | J171: 344.11103 | K171: 354.2067306 | L171: 392.4967167
A172: 235.8232629 | B172: 274.0016539 | C172: 251.1395464 | D172: 250.0955577 | E172: 292.149553 | F172: 249.1928427 | G172: 251.7413215 | H172: 292.3064031 | I172: 291.3552327 | J172: 323.3766911 | K172: 337.6154331 | L172: 380.3645916
A173: 240.5154418 | B173: 264.4178439 | C173: 245.7015081 | D173: 253.2290565 | E173: 278.4936281 | F173: 265.276672 | G173: 265.3687458 | H173: 248.6989603 | I173: 298.0302979 | J173: 303.5782588 | K173: 304.1452472 | L173: 359.788586
A174: 234.517895 | B174: 253.2385259 | C174: 235.588805 | D174: 228.478386 | E174: 278.5272423 | F174: 226.4856921 | G174: 240.535341 | H174: 256.8533001 | I174: 256.7627399 | J174: 279.781184 | K174: 279.0587415 | L174: 332.0240199
A175: 274.9026128 | B175: 273.4582583 | C175: 261.5570247 | D175: 264.7416564 | E175: 308.6367079 | F175: 284.6252404 | G175: 301.0621562 | H175: 306.3343919 | I175: 347.4885448 | J175: 352.877847 | K175: 391.1376698 | L175: 447.0297366
A176: 241.0483724 | B176: 265.5389396 | C176: 246.1037287 | D176: 225.9097974 | E176: 274.5606243 | F176: 231.4137679 | G176: 261.760552 | H176: 245.6680819 | I176: 277.0850415 | J176: 292.9697263 | K176: 316.3240825 | L176: 359.7876402
A177: 243.0609902 | B177: 261.5893242 | C177: 230.7435326 | D177: 242.5159502 | E177: 277.1866863 | F177: 241.3850472 | G177: 250.2980494 | H177: 264.6366969 | I177: 282.1082005 | J177: 297.7066543 | K177: 324.3031976 | L177: 363.4510485
A178: 236.3199911 | B178: 245.7033022 | C178: 220.0443511 | D178: 217.8765847 | E178: 260.4299416 | F178: 227.5055872 | G178: 240.4469879 | H178: 232.5836568 | I178: 262.6766364 | J178: 278.5719984 | K178: 271.6947956 | L178: 332.5670393
A179: 240.2870561 | B179: 259.1759775 | C179: 247.5862481 | D179: 266.8390461 | E179: 279.2613522 | F179: 263.28707 | G179: 273.5812102 | H179: 288.1490964 | I179: 306.1765482 | J179: 317.6870789 | K179: 333.9988752 | L179: 398.5247543
A180: 240.9677254 | B180: 263.4942378 | C180: 236.0131717 | D180: 229.1927211 | E180: 278.1373241 | F180: 239.7608682 | G180: 233.8146095 | H180: 276.8978772 | I180: 274.6612648 | J180: 310.9265602 | K180: 305.7247455 | L180: 372.2400812
A181: 247.3503707 | B181: 279.2982574 | C181: 242.7802672 | D181: 240.040697 | E181: 293.9329265 | F181: 275.3306948 | G181: 274.7258857 | H181: 278.6943292 | I181: 317.2422314 | J181: 326.3215652 | K181: 341.9107688 | L181: 420.5349483
A182: 240.6725301 | B182: 252.4216693 | C182: 243.1772041 | D182: 258.0320232 | E182: 283.2961921 | F182: 255.9501197 | G182: 261.1039308 | H182: 276.8684964 | I182: 287.5312983 | J182: 304.4499004 | K182: 319.8747229 | L182: 371.2780248
A183: 234.5755917 | B183: 289.2005549 | C183: 244.7837812 | D183: 260.4276628 | E183: 313.6400335 | F183: 260.3461692 | G183: 269.3705134 | H183: 286.5329693 | I183: 319.0396848 | J183: 330.9582866 | K183: 344.0286037 | L183: 414.1192191
A184: 239.9471656 | B184: 261.5122354 | C184: 236.4002908 | D184: 242.7615595 | E184: 281.3712991 | F184: 229.9655804 | G184: 261.886163 | H184: 267.4339464 | I184: 273.0117608 | J184: 297.1498947 | K184: 307.3952084 | L184: 348.517347
A185: 244.5048144 | B185: 258.9839383 | C185: 251.3386831 | D185: 246.4679805 | E185: 294.8500932 | F185: 242.9785955 | G185: 268.454455 | H185: 283.1227864 | I185: 309.3917355 | J185: 316.0360242 | K185: 314.4219102 | L185: 396.491651
A186: 257.3935251 | B186: 269.7094971 | C186: 253.728123 | D186: 245.483218 | E186: 283.6175594 | F186: 258.695648 | G186: 275.9292625 | H186: 290.8105536 | I186: 317.1011657 | J186: 330.2136583 | K186: 344.7963841 | L186: 397.2079368
A187: 236.7939589 | B187: 252.9409623 | C187: 246.7805512 | D187: 217.8908745 | E187: 268.227967 | F187: 234.8645931 | G187: 252.3201712 | H187: 249.2563433 | I187: 253.526354 | J187: 265.5026427 | K187: 275.2580488 | L187: 325.5164632
A188: 245.7313781 | B188: 268.8271303 | C188: 236.4600269 | D188: 241.4642147 | E188: 279.4446319 | F188: 254.7937805 | G188: 253.4074188 | H188: 272.6702934 | I188: 280.7102107 | J188: 306.3538716 | K188: 321.6456276 | L188: 358.7893013
A189: 242.4725103 | B189: 265.3527292 | C189: 238.547287 | D189: 252.9637771 | E189: 280.0614954 | F189: 243.7300438 | G189: 262.5095157 | H189: 261.0796456 | I189: 304.1959126 | J189: 297.4100195 | K189: 326.1113164 | L189: 396.0743913
A190: 255.8601971 | B190: 285.5538277 | C190: 270.4964504 | D190: 253.5191186 | E190: 296.2539292 | F190: 258.3306043 | G190: 269.2245799 | H190: 290.0865039 | I190: 291.1159387 | J190: 323.2291157 | K190: 337.3245678 | L190: 381.4704747
A191: 239.7482877 | B191: 268.884407 | C191: 242.9126206 | D191: 230.8712773 | E191: 284.7868453 | F191: 264.0413208 | G191: 254.9638859 | H191: 269.4279715 | I191: 309.4366902 | J191: 311.8658812 | K191: 319.4125874 | L191: 385.1298378
A192: 237.5198355 | B192: 273.0296365 | C192: 247.8652257 | D192: 247.2111809 | E192: 292.9455215 | F192: 237.7320731 | G192: 256.2474552 | H192: 261.0493794 | I192: 285.9666268 | J192: 295.9467776 | K192: 306.9423081 | L192: 357.0401592
A193: 261.7914399 | B193: 271.3121386 | C193: 237.0172014 | D193: 245.1964888 | E193: 284.8746447 | F193: 246.6318398 | G193: 265.8109756 | H193: 263.8679929 | I193: 298.9283578 | J193: 317.9239407 | K193: 328.7173954 | L193: 383.0033254
A194: 238.9555449 | B194: 267.1881101 | C194: 244.6031184 | D194: 235.3497143 | E194: 276.347467 | F194: 237.9017834 | G194: 259.3398338 | H194: 259.9905991 | I194: 287.1485805 | J194: 292.0416773 | K194: 319.8107293 | L194: 367.4962441
A195: 248.4670963 | B195: 248.7137729 | C195: 220.0597926 | D195: 218.7515541 | E195: 260.7976228 | F195: 226.4631555 | G195: 234.1318114 | H195: 227.3684658 | I195: 237.1452084 | J195: 260.8722688 | K195: 241.6967893 | L195: 305.9372783
A196: 231.1483751 | B196: 245.2142517 | C196: 232.9616235 | D196: 238.6415832 | E196: 269.9541485 | F196: 234.9923749 | G196: 239.4762382 | H196: 224.5944095 | I196: 266.1613813 | J196: 267.6063602 | K196: 265.6100365 | L196: 324.2015682
A197: 251.6972503 | B197: 276.1543968 | C197: 248.5528413 | D197: 246.9337696 | E197: 303.0889897 | F197: 267.0464369 | G197: 274.0479455 | H197: 274.3041984 | I197: 306.4802849 | J197: 319.8719866 | K197: 320.0803715 | L197: 394.4679002
A198: 237.2205949 | B198: 263.8877417 | C198: 235.123392 | D198: 239.2320581 | E198: 294.410145 | F198: 234.7056536 | G198: 255.9723277 | H198: 253.7361042 | I198: 278.4642223 | J198: 280.9785927 | K198: 315.3479776 | L198: 366.2627384
A199: 234.6890122 | B199: 258.5411047 | C199: 233.3186562 | D199: 235.3857664 | E199: 274.6214472 | F199: 228.2744206 | G199: 236.6757013 | H199: 266.5326067 | I199: 252.3756433 | J199: 263.0227478 | K199: 286.2823509 | L199: 326.2879034
A200: 233.0971268 | B200: 243.1494556 | C200: 212.4389595 | D200: 230.6454494 | E200: 258.4854488 | F200: 229.0891223 | G200: 246.9781679 | H200: 253.5617348 | I200: 261.2844831 | J200: 293.96452 | K200: 294.9017445 | L200: 345.978656
A201: 233.7926149 | B201: 255.8026532 | C201: 230.4750911 | D201: 242.8685631 | E201: 279.1549239 | F201: 260.1820974 | G201: 242.94687 | H201: 257.2473053 | I201: 270.1371604 | J201: 273.8276048 | K201: 305.7321386 | L201: 354.921255
A202: 237.9717118 | B202: 255.0198177 | C202: 256.3446838 | D202: 249.6148542 | E202: 277.2202286 | F202: 275.9102517 | G202: 256.4847847 | H202: 267.774154 | I202: 318.3653402 | J202: 330.0589256 | K202: 344.9159565 | L202: 409.0118026
A203: 249.036802 | B203: 271.7388102 | C203: 246.6446393 | D203: 259.5367346 | E203: 309.5612047 | F203: 267.9903477 | G203: 293.0776498 | H203: 304.5840298 | I203: 334.8150275 | J203: 362.3945548 | K203: 380.3389812 | L203: 449.6766889
... 867 more rows

Sheet График
A1: Прогноз Холта-Винтерса с доверительным интервалом
A2: Месяц | B2: 37 | C2: 38 | D2: 39 | E2: 40 | F2: 41 | G2: 42 | H2: 43 | I2: 44 | J2: 45 | K2: 46 | L2: 47 | M2: 48
A3: Спрос | B3: 263.5924575 | C3: 284.2848013 | D3: 264.7001118 | E3: 266.1974262 | F3: 309.3789777 | G3: 279.5457584 | H3: 291.2321276 | I3: 300.1702782 | J3: 326.6543003 | K3: 348.214678 | L3: 370.743848 | M3: 436.8168565
B4: 245.3985965 | C4: 263.5395469 | D4: 241.3963585 | E4: 240.8934537 | F4: 280.7567968 | G4: 248.7223 | H4: 257.4741188 | I4: 263.9232332 | J4: 286.6998668 | K4: 300.0361957 | L4: 314.9056157 | M4: 368.0426867
B5: 223.9601659 | C5: 240.7928264 | D5: 218.6764816 | E5: 216.8198489 | F5: 251.6614619 | G5: 220.213008 | H5: 224.3302767 | I5: 230.7294853 | J5: 243.5265647 | K5: 254.1289407 | L5: 263.2932 | M5: 302.7681048
